Workbook

Sheet Hoja1 (hidden)
B1: No. | C1: NUM. REG. | D1: DEPENDENCIA | E1: CARRERA | F1: NOMBRE DEL PROYECTO | G1: ASESOR (ES) | H1: TELEFONO
A2: =COUNTIF($E$1:E2,'Proyectos vigentes'!$C$4) -> 0 | B2: 1 | C2: 52 | D2: Alcaldía Gustavo A. Madero | E2: Civil | F2: Infraestructura urbana y servicios públicos | G2: Lic. Oscar José Ramírez Rojas Lic. María Elena Pelayo Maldonado | H2: 55 51182800 EXT. 6209 y 6211 | M2: Ambiental
A3: =COUNTIF($E$1:E3,'Proyectos vigentes'!$C$4) -> 0 | B3: 2 | C3: 52 | D3: Alcaldía Gustavo A. Madero | E3: Eléctrica | F3: Infraestructura urbana y servicios públicos | G3: Lic. Oscar José Ramírez Rojas Lic. María Elena Pelayo Maldonado | H3: 55 51182800 EXT. 6209 y 6211 | M3: Civil
A4: =COUNTIF($E$1:E4,'Proyectos vigentes'!$C$4) -> 0 | B4: 3 | C4: 55 | D4: Alcaldía Gustavo A. Madero | E4: Electrónica | F4: Tecnologías de la información | G4: Lic. Oscar José Ramírez Rojas Lic. María Elena Pelayo Maldonado | H4: 55 51182800 EXT. 6209 y 6211 | M4: Computación
A5: =COUNTIF($E$1:E5,'Proyectos vigentes'!$C$4) -> 0 | B5: 4 | C5: 55 | D5: Alcaldía Gustavo A. Madero | E5: Computación | F5: Tecnologías de la información | G5: Lic. Oscar José Ramírez Rojas Lic. María Elena Pelayo Maldonado | H5: 55 51182800 EXT. 6209 y 6211 | M5: Eléctrica
A6: =COUNTIF($E$1:E6,'Proyectos vigentes'!$C$4) -> 0 | B6: 5 | C6: 56 | D6: Alcaldía Gustavo A. Madero | E6: Ambiental | F6: Transformación del entorno urbano | G6: Lic. Oscar José Ramírez Rojas Lic. María Elena Pelayo Maldonado | H6: 55 51182800 EXT. 6209 y 6211 | M6: Electrónica
A7: =COUNTIF($E$1:E7,'Proyectos vigentes'!$C$4) -> 0 | B7: 6 | C7: 60 | D7: Instituto Mexicano del Petróleo | E7: Ambiental | F7: Formación y desarrollo del factor humano del IMP | G7: M. en C. María Guadalupe Alvarado Maldonado | H7: 9175-6373 | M7: Física
A8: =COUNTIF($E$1:E8,'Proyectos vigentes'!$C$4) -> 0 | B8: 7 | C8: 60 | D8: Instituto Mexicano del Petróleo | E8: Civil | F8: Formación y desarrollo del factor humano del IMP | G8: M. en C. María Guadalupe Alvarado Maldonado | H8: 9175-6373 | M8: Industrial
A9: =COUNTIF($E$1:E9,'Proyectos vigentes'!$C$4) -> 0 | B9: 8 | C9: 60 | D9: Instituto Mexicano del Petróleo | E9: Eléctrica | F9: Formación y desarrollo del factor humano del IMP | G9: M. en C. María Guadalupe Alvarado Maldonado | H9: 9175-6373 | M9: Mecánica
A10: =COUNTIF($E$1:E10,'Proyectos vigentes'!$C$4) -> 0 | B10: 9 | C10: 60 | D10: Instituto Mexicano del Petróleo | E10: Electrónica | F10: Formación y desarrollo del factor humano del IMP | G10: M. en C. María Guadalupe Alvarado Maldonado | H10: 9175-6373 | M10: Metalúrgica
A11: =COUNTIF($E$1:E11,'Proyectos vigentes'!$C$4) -> 0 | B11: 10 | C11: 60 | D11: Instituto Mexicano del Petróleo | E11: Computación | F11: Formación y desarrollo del factor humano del IMP | G11: M. en C. María Guadalupe Alvarado Maldonado | H11: 9175-6373 | M11: Química
A12: =COUNTIF($E$1:E12,'Proyectos vigentes'!$C$4) -> 0 | B12: 11 | C12: 60 | D12: Instituto Mexicano del Petróleo | E12: Física | F12: Formación y desarrollo del factor humano del IMP | G12: M. en C. María Guadalupe Alvarado Maldonado | H12: 9175-6373 | M12: Todas las carreras CBI
A13: =COUNTIF($E$1:E13,'Proyectos vigentes'!$C$4) -> 0 | B13: 12 | C13: 60 | D13: Instituto Mexicano del Petróleo | E13: Industrial | F13: Formación y desarrollo del factor humano del IMP | G13: M. en C. María Guadalupe Alvarado Maldonado | H13: 9175-6373
A14: =COUNTIF($E$1:E14,'Proyectos vigentes'!$C$4) -> 1 | B14: 13 | C14: 60 | D14: Instituto Mexicano del Petróleo | E14: Mecánica | F14: Formación y desarrollo del factor humano del IMP | G14: M. en C. María Guadalupe Alvarado Maldonado | H14: 9175-6373
A15: =COUNTIF($E$1:E15,'Proyectos vigentes'!$C$4) -> 1 | B15: 14 | C15: 60 | D15: Instituto Mexicano del Petróleo | E15: Química | F15: Formación y desarrollo del factor humano del IMP | G15: M. en C. María Guadalupe Alvarado Maldonado | H15: 9175-6373
A16: =COUNTIF($E$1:E16,'Proyectos vigentes'!$C$4) -> 1 | B16: 15 | C16: 85 | D16: Alcaldía Gustavo A. Madero | E16: Industrial | F16: Modernización administrativa | G16: Lic. Javier Sánchez Camacho Lic. María Elena Pelayo Maldonado | H16: 55 51182800 EXT:2115 Y 2107
A17: =COUNTIF($E$1:E17,'Proyectos vigentes'!$C$4) -> 1 | B17: 16 | C17: 179 | D17: Alcaldía Gustavo A. Madero | E17: Industrial | F17: Fomento a la micro y pequeña empresa | G17: Lic. Javier Sánchez Camacho Lic. María Elena Pelayo Maldonado | H17: 55 51182800 EXT. 2114 y 2115
A18: =COUNTIF($E$1:E18,'Proyectos vigentes'!$C$4) -> 1 | B18: 17 | C18: 179 | D18: Alcaldía Gustavo A. Madero | E18: Química | F18: Fomento a la micro y pequeña empresa | G18: Lic. Javier Sánchez Camacho Lic. María Elena Pelayo Maldonado | H18: 55 51182800 EXT. 2114 y 2115
A19: =COUNTIF($E$1:E19,'Proyectos vigentes'!$C$4) -> 1 | B19: 18 | C19: 180 | D19: Alcaldía Gustavo A. Madero | E19: Industrial | F19: Atención a la comunidad | G19: Lic. Javier Sánchez Camacho Lic. María Elena Pelayo Maldonado | H19: 55 51182800 EXT. 2115 Y 2107
A20: =COUNTIF($E$1:E20,'Proyectos vigentes'!$C$4) -> 1 | B20: 19 | C20: 285 | D20: Secretaría de Medio Ambiente y Recursos Naturales | E20: Ambiental | F20: Educación Superior y Conservación del Medio Ambiente | G20: Lic. Claudia Anel Guerrero Martín, Lic. José Pablo J. Sósol Morgado | H20: 5490-2100 ext. 14568
A21: =COUNTIF($E$1:E21,'Proyectos vigentes'!$C$4) -> 1 | B21: 20 | C21: 285 | D21: Secretaría de Medio Ambiente y Recursos Naturales | E21: Computación | F21: Educación Superior y Conservación del Medio Ambiente | G21: Lic. Claudia Anel Guerrero Martín, Lic. José Pablo J. Sósol Morgado | H21: 5490-2100 ext. 14568
A22: =COUNTIF($E$1:E22,'Proyectos vigentes'!$C$4) -> 1 | B22: 21 | C22: 361 | D22: Sistema de Transporte Colectivo (Metro) | E22: Computación | F22: Mantenimiento preventivo y correctivo a las instalaciones que conforman la operatividad del S. T. C. | G22: Lic. Carlos Enrique Gómez Alonso | H22: 5709-1133 ext. 2546, 2547
A23: =COUNTIF($E$1:E23,'Proyectos vigentes'!$C$4) -> 1 | B23: 22 | C23: 361 | D23: Sistema de Transporte Colectivo (Metro) | E23: Eléctrica | F23: Mantenimiento preventivo y correctivo a las instalaciones que conforman la operatividad del S. T. C. | G23: Lic. Carlos Enrique Gómez Alonso | H23: 5709-1133 ext. 2546, 2547
A24: =COUNTIF($E$1:E24,'Proyectos vigentes'!$C$4) -> 1 | B24: 23 | C24: 361 | D24: Sistema de Transporte Colectivo (Metro) | E24: Electrónica | F24: Mantenimiento preventivo y correctivo a las instalaciones que conforman la operatividad del S. T. C. | G24: Lic. Carlos Enrique Gómez Alonso | H24: 5709-1133 ext. 2546, 2547
A25: =COUNTIF($E$1:E25,'Proyectos vigentes'!$C$4) -> 1 | B25: 24 | C25: 361 | D25: Sistema de Transporte Colectivo (Metro) | E25: Industrial | F25: Mantenimiento preventivo y correctivo a las instalaciones que conforman la operatividad del S. T. C. | G25: Lic. Carlos Enrique Gómez Alonso | H25: 5709-1133 ext. 2546, 2547
A26: =COUNTIF($E$1:E26,'Proyectos vigentes'!$C$4) -> 2 | B26: 25 | C26: 361 | D26: Sistema de Transporte Colectivo (Metro) | E26: Mecánica | F26: Mantenimiento preventivo y correctivo a las instalaciones que conforman la operatividad del S. T. C. | G26: Lic. Carlos Enrique Gómez Alonso | H26: 5709-1133 ext. 2546, 2547
A27: =COUNTIF($E$1:E27,'Proyectos vigentes'!$C$4) -> 2 | B27: 26 | C27: 361 | D27: Sistema de Transporte Colectivo (Metro) | E27: Civil | F27: Mantenimiento preventivo y correctivo a las instalaciones que conforman la operatividad del S. T. C. | G27: Lic. Carlos Enrique Gómez Alonso | H27: 5709-1133 ext. 2546, 2547
A28: =COUNTIF($E$1:E28,'Proyectos vigentes'!$C$4) -> 2 | B28: 27 | C28: 378 | D28: Alcaldía Benito Juárez | E28: Civil | F28: Protección, Conservación y Mejoramiento de Obras Públicas y Desarrollo Urbano | G28: C. Jesús Velázquez Morán | H28: 55-5422-5300
A29: =COUNTIF($E$1:E29,'Proyectos vigentes'!$C$4) -> 2 | B29: 28 | C29: 829-396 | D29: Petróleos Mexicanos | E29: Ambiental | F29: PROSER Capital Humano | G29: Ing. María Esther Torruco Ruiz | H29: 1944-2500 ext. 37771
A30: =COUNTIF($E$1:E30,'Proyectos vigentes'!$C$4) -> 2 | B30: 29 | C30: 829-396 | D30: Petróleos Mexicanos | E30: Civil | F30: PROSER Capital Humano | G30: Ing. María Esther Torruco Ruiz | H30: 1944-2500 ext. 37771
A31: =COUNTIF($E$1:E31,'Proyectos vigentes'!$C$4) -> 2 | B31: 30 | C31: 829-396 | D31: Petróleos Mexicanos | E31: Computación | F31: PROSER Capital Humano | G31: Ing. María Esther Torruco Ruiz | H31: 1944-2500 ext. 37771
A32: =COUNTIF($E$1:E32,'Proyectos vigentes'!$C$4) -> 2 | B32: 31 | C32: 829-396 | D32: Petróleos Mexicanos | E32: física | F32: PROSER Capital Humano | G32: Ing. María Esther Torruco Ruiz | H32: 1944-2500 ext. 37771
A33: =COUNTIF($E$1:E33,'Proyectos vigentes'!$C$4) -> 2 | B33: 32 | C33: 829-396 | D33: Petróleos Mexicanos | E33: Industrial | F33: PROSER Capital Humano | G33: Ing. María Esther Torruco Ruiz | H33: 1944-2500 ext. 37771
A34: =COUNTIF($E$1:E34,'Proyectos vigentes'!$C$4) -> 3 | B34: 33 | C34: 829-396 | D34: Petróleos Mexicanos | E34: Mecánica | F34: PROSER Capital Humano | G34: Ing. María Esther Torruco Ruiz | H34: 1944-2500 ext. 37771
A35: =COUNTIF($E$1:E35,'Proyectos vigentes'!$C$4) -> 3 | B35: 34 | C35: 829-396 | D35: Petróleos Mexicanos | E35: Eléctrica | F35: PROSER Capital Humano | G35: Ing. María Esther Torruco Ruiz | H35: 1944-2500 ext. 37771
A36: =COUNTIF($E$1:E36,'Proyectos vigentes'!$C$4) -> 3 | B36: 35 | C36: 829-396 | D36: Petróleos Mexicanos | E36: Electrónica | F36: PROSER Capital Humano | G36: Ing. María Esther Torruco Ruiz | H36: 1944-2500 ext. 37771
A37: =COUNTIF($E$1:E37,'Proyectos vigentes'!$C$4) -> 3 | B37: 36 | C37: 829-396 | D37: Petróleos Mexicanos | E37: Química | F37: PROSER Capital Humano | G37: Ing. María Esther Torruco Ruiz | H37: 1944-2500 ext. 37771
A38: =COUNTIF($E$1:E38,'Proyectos vigentes'!$C$4) -> 3 | B38: 37 | C38: 829-398 | D38: Secretaría de Desarrollo Urbano y Vivienda (SEDUVI) | E38: Civil | F38: Planeación, ordenamiento y políticas de regulación del desarrollo urbano | G38: Lic. Lic. Guadalupe Ivette Oyala Cruz C. José Juan Quinto Ortega | H38: 555130-2100 ext. 2257, 2221, 2166
A39: =COUNTIF($E$1:E39,'Proyectos vigentes'!$C$4) -> 3 | B39: 38 | C39: 829-398 | D39: Secretaría de Desarrollo Urbano y Vivienda (SEDUVI) | E39: Computación | F39: Planeación, ordenamiento y políticas de regulación del desarrollo urbano | G39: Lic. Lic. Guadalupe Ivette Oyala Cruz C. José Juan Quinto Ortega | H39: 5130-2100 ext. 2257, 2221
A40: =COUNTIF($E$1:E40,'Proyectos vigentes'!$C$4) -> 3 | B40: 39 | C40: 829-398 | D40: Secretaría de Desarrollo Urbano y Vivienda (SEDUVI) | E40: Eléctrica | F40: Planeación, ordenamiento y políticas de regulación del desarrollo urbano | G40: Lic. Lic. Guadalupe Ivette Oyala Cruz C. José Juan Quinto Ortega | H40: 5130-2100 ext. 2257, 2221
A41: =COUNTIF($E$1:E41,'Proyectos vigentes'!$C$4) -> 3 | B41: 40 | C41: 829-415 | D41: Alcaldía Iztapalapa | E41: Civil | F41: Servicio Social Multidisciplinario | G41: Lic. Alfonso Salvador Armenta Rojas | H41: 55.89.97.81.22
A42: =COUNTIF($E$1:E42,'Proyectos vigentes'!$C$4) -> 3 | B42: 41 | C42: 830-065 | D42: Instituto Mexicano de la Construcción en Acero (IMCA) | E42: Civil | F42: Diseño, fabricación, montaje y supervisión de estructuras de acero | G42: Ing. Octavio Álvarez Valadez Dr. Tiziano Perea Olvera. | H42: 55-5572-3196
A43: =COUNTIF($E$1:E43,'Proyectos vigentes'!$C$4) -> 4 | B43: 42 | C43: 830-065 | D43: Instituto Mexicano de la Construcción en Acero (IMCA) | E43: Mecánica | F43: Diseño, fabricación, montaje y supervisión de estructuras de acero | G43: Ing. Octavio Álvarez Valadez Dr. Tiziano Perea Olvera. | H43: 55-5572-3196
A44: =COUNTIF($E$1:E44,'Proyectos vigentes'!$C$4) -> 4 | B44: 43 | C44: 829-423 | D44: Secretaría de Educación, Ciencia, Tecnología e Innovación de la Ciudad De México | E44: Todas las carreras CBI | F44: Apoyo a actividades de Fortalecimiento a la Educación Básica en ambientes escolarizados y no escolarizados | G44: M. en C. Liliana Sánchez Estrada, Lic. María Estela Del Valle Guerrero | H44: 5134-0770 ext 1919
A45: =COUNTIF($E$1:E45,'Proyectos vigentes'!$C$4) -> 4 | B45: 44 | C45: 829-426 | D45: Centro de Investigación en Ciencia Aplicada y Tecnología Avanzada (CICATA) del Instituto Politécnico Nacional, Unidad Legaría | E45: Computación | F45: Caracterización luminiscente de materiales cerámicos sintéticos para la detección de radiación ionizante | G45: Dr. Teodoro Rivera Montalvo, Dr. Ernesto Rodrigo Vázquez Cerón | H45: 53956738 Ext 67791
A46: =COUNTIF($E$1:E46,'Proyectos vigentes'!$C$4) -> 4 | B46: 45 | C46: 829-426 | D46: Centro de Investigación en Ciencia Aplicada y Tecnología Avanzada (CICATA) del Instituto Politécnico Nacional, Unidad Legaría | E46: Electrónica | F46: Caracterización luminiscente de materiales cerámicos sintéticos para la detección de radiación ionizante | G46: Dr. Teodoro Rivera Montalvo, Dr. Ernesto Rodrigo Vázquez Cerón | H46: 53956738 Ext 67791
A47: =COUNTIF($E$1:E47,'Proyectos vigentes'!$C$4) -> 4 | B47: 46 | C47: 829-426 | D47: Centro de Investigación en Ciencia Aplicada y Tecnología Avanzada (CICATA) del Instituto Politécnico Nacional, Unidad Legaría | E47: Física | F47: Caracterización luminiscente de materiales cerámicos sintéticos para la detección de radiación ionizante | G47: Dr. Teodoro Rivera Montalvo, Dr. Ernesto Rodrigo Vázquez Cerón | H47: 53956738 Ext 67791
A48: =COUNTIF($E$1:E48,'Proyectos vigentes'!$C$4) -> 4 | B48: 47 | C48: 829-430 | D48: Alcaldía Azcapotzalco | E48: Civil | F48: Desarrollo urbano y mantenimiento a infraestructura | G48: Ing. Arq. Nina Hermosillo Miranda, Arq. Rafael Posadas Rodríguez, C. P. Beatriz Loyola Barrera. Lic. Alejandro Flores García | H48: 55-5354-9994
A49: =COUNTIF($E$1:E49,'Proyectos vigentes'!$C$4) -> 4 | B49: 48 | C49: 829-430 | D49: Alcaldía Azcapotzalco | E49: Eléctrica | F49: Desarrollo urbano y mantenimiento a infraestructura | G49: Ing. Arq. Nina Hermosillo Miranda, Arq. Rafael Posadas Rodríguez, C. P. Beatriz Loyola Barrera. Lic. Alejandro Flores García | H49: 55-5354-9994
A50: =COUNTIF($E$1:E50,'Proyectos vigentes'!$C$4) -> 4 | B50: 49 | C50: 829-431 | D50: Alcaldía Azcapotzalco | E50: Civil | F50: Protección Civil | G50: Lic. Jafet Dayan Anzaldo Medero, C. P. Beatriz Loyola Barrera. Lic. Alejandro Flores García | H50: 55-5347-1527 55-5354-9994 ext. 2109
A51: =COUNTIF($E$1:E51,'Proyectos vigentes'!$C$4) -> 4 | B51: 50 | C51: 829-431 | D51: Alcaldía Azcapotzalco | E51: Industrial | F51: Protección Civil | G51: Lic. Jafet Dayan Anzaldo Medero, C. P. Beatriz Loyola Barrera. Lic. Alejandro Flores García | H51: 55-5347-1527 55-5354-9994 ext. 2109
A52: =COUNTIF($E$1:E52,'Proyectos vigentes'!$C$4) -> 4 | B52: 51 | C52: 829-431 | D52: Alcaldía Azcapotzalco | E52: Química | F52: Protección Civil | G52: Lic. Jafet Dayan Anzaldo Medero, C. P. Beatriz Loyola Barrera. Lic. Alejandro Flores García | H52: 55-5347-1527 55-5354-9994 ext. 2109
A53: =COUNTIF($E$1:E53,'Proyectos vigentes'!$C$4) -> 4 | B53: 52 | C53: 829-433 | D53: Secretaría de Seguridad Ciudadana de la Ciudad de México (SSC CDMX) | E53: Computación | F53: Apoyar el desarrollo, mantenimiento y mejora del sistema informático de la SSC CDMX | G53: Lic. Juan de Dios Maciel Pérez Lic. Luis Javier Ramírez Reyes. | H53: 55-5132-5400 ext. 1314
A54: =COUNTIF($E$1:E54,'Proyectos vigentes'!$C$4) -> 4 | B54: 53 | C54: 829-434 | D54: Secretaría de Seguridad Ciudadana de la Ciudad de México (SSC CDMX) | E54: Civil | F54: Apoyo en los servicios de obra, mantenimiento y conservación de los inmuebles de la SSC CDMX | G54: Lic. Juan de Dios Maciel Pérez Lic. Luis Javier Ramírez Reyes. | H54: 55-5132-5400 ext. 1314
A55: =COUNTIF($E$1:E55,'Proyectos vigentes'!$C$4) -> 4 | B55: 54 | C55: 829-435 | D55: Secretaría de Seguridad Ciudadana de la Ciudad de México (SSC CDMX) | E55: Eléctrica | F55: Apoyo en actividades de infraestructura y de tecnología de la SSC CDMX | G55: Lic. Juan de Dios Maciel Pérez Lic. Luis Javier Ramírez Reyes. | H55: 55-5132-5400 ext. 1314
A56: =COUNTIF($E$1:E56,'Proyectos vigentes'!$C$4) -> 4 | B56: 55 | C56: 829-435 | D56: Secretaría de Seguridad Ciudadana de la Ciudad de México (SSC CDMX) | E56: Electrónica | F56: Apoyo en actividades de infraestructura y de tecnología de la SSC CDMX | G56: Lic. Juan de Dios Maciel Pérez Lic. Luis Javier Ramírez Reyes. | H56: 55-5132-5400 ext. 1314
A57: =COUNTIF($E$1:E57,'Proyectos vigentes'!$C$4) -> 4 | B57: 56 | C57: 829-435 | D57: Secretaría de Seguridad Ciudadana de la Ciudad de México (SSC CDMX) | E57: Eléctrica | F57: Apoyo en actividades de infraestructura y de tecnología de la SSC CDMX | G57: Lic. Juan de Dios Maciel Pérez Lic. Luis Javier Ramírez Reyes. | H57: 55-5132-5400 ext. 1314
A58: =COUNTIF($E$1:E58,'Proyectos vigentes'!$C$4) -> 4 | B58: 57 | C58: 829-435 | D58: Secretaría de Seguridad Ciudadana de la Ciudad de México (SSC CDMX) | E58: Industrial | F58: Apoyo en actividades de infraestructura y de tecnología de la SSC CDMX | G58: Lic. Juan de Dios Maciel Pérez Lic. Luis Javier Ramírez Reyes. | H58: 55-5132-5400 ext. 1314
A59: =COUNTIF($E$1:E59,'Proyectos vigentes'!$C$4) -> 5 | B59: 58 | C59: 829-435 | D59: Secretaría de Seguridad Ciudadana de la Ciudad de México (SSC CDMX) | E59: Mecánica | F59: Apoyo en actividades de infraestructura y de tecnología de la SSC CDMX | G59: Lic. Juan de Dios Maciel Pérez Lic. Luis Javier Ramírez Reyes. | H59: 55-5132-5400 ext. 1314
A60: =COUNTIF($E$1:E60,'Proyectos vigentes'!$C$4) -> 5 | B60: 59 | C60: 829-436 | D60: Alcaldía Álvaro Obregón | E60: Ambiental | F60: Contribución al fortalecimiento y optimización de los recursos en Álvaro Obregón | G60: Lic. Flor Itzel Ortiz Cruz | H60: 55-5276-6949, 55-5276-6700 ext. 2548
A61: =COUNTIF($E$1:E61,'Proyectos vigentes'!$C$4) -> 5 | B61: 60 | C61: 829-436 | D61: Alcaldía Álvaro Obregón | E61: Civil | F61: Contribución al fortalecimiento y optimización de los recursos en Álvaro Obregón | G61: Lic. Flor Itzel Ortiz Cruz | H61: 55-5276-6949, 55-5276-6700 ext. 2548
A62: =COUNTIF($E$1:E62,'Proyectos vigentes'!$C$4) -> 5 | B62: 61 | C62: 829-436 | D62: Alcaldía Álvaro Obregón | E62: Industrial | F62: Contribución al fortalecimiento y optimización de los recursos en Álvaro Obregón | G62: Lic. Flor Itzel Ortiz Cruz | H62: 55-5276-6949, 55-5276-6700 ext. 2548
A63: =COUNTIF($E$1:E63,'Proyectos vigentes'!$C$4) -> 5 | B63: 62 | C63: 829-436 | D63: Alcaldía Álvaro Obregón | E63: Computación | F63: Contribución al fortalecimiento y optimización de los recursos en Álvaro Obregón | G63: Lic. Flor Itzel Ortiz Cruz | H63: 55-5276-6949, 55-5276-6700 ext. 2548
A64: =COUNTIF($E$1:E64,'Proyectos vigentes'!$C$4) -> 5 | B64: 63 | C64: 829-439 | D64: Hospital General Dr. Manuel Gea González | E64: Electrónica | F64: Introducción al medio hospitalario en servicios de mantenimiento preventivos y correctivos al equipo médico I | G64: Ing. Adriana González Balderas, Ing. Israel Sánchez Rivera, Dr. Ernesto Rodrigo Vázquez Cerón. | H64: 5540003000 ext.5200
A65: =COUNTIF($E$1:E65,'Proyectos vigentes'!$C$4) -> 5 | B65: 64 | C65: 829-439 | D65: Hospital General Dr. Manuel Gea González | E65: Física | F65: Introducción al medio hospitalario en servicios de mantenimiento preventivos y correctivos al equipo médico I | G65: Ing. Adriana González Balderas, Ing. Israel Sánchez Rivera, Dr. Ernesto Rodrigo Vázquez Cerón. | H65: 5540003000 ext.5200
A66: =COUNTIF($E$1:E66,'Proyectos vigentes'!$C$4) -> 5 | B66: 65 | C66: 829-443 | D66: Financiera para el Bienestar | E66: Computación | F66: Apoyo Administrativo en Telecomm | G66: Lic. Karla Beatriz Dávila García, Mtro. Carlos Fernando Roldán Zarate | H66: 5550901100 ext.1202
A67: =COUNTIF($E$1:E67,'Proyectos vigentes'!$C$4) -> 5 | B67: 66 | C67: 829-443 | D67: Financiera para el Bienestar | E67: Eléctrica | F67: Apoyo Administrativo en Telecomm | G67: Lic. Karla Beatriz Dávila García, Mtro. Carlos Fernando Roldán Zarate | H67: 5550901100 ext.1202
A68: =COUNTIF($E$1:E68,'Proyectos vigentes'!$C$4) -> 5 | B68: 67 | C68: 829-443 | D68: Financiera para el Bienestar | E68: Electrónica | F68: Apoyo Administrativo en Telecomm | G68: Lic. Karla Beatriz Dávila García, Mtro. Carlos Fernando Roldán Zarate | H68: 5550901100 ext.1202
A69: =COUNTIF($E$1:E69,'Proyectos vigentes'!$C$4) -> 6 | B69: 68 | C69: 829-443 | D69: Financiera para el Bienestar | E69: Mecánica | F69: Apoyo Administrativo en Telecomm | G69: Lic. Karla Beatriz Dávila García, Mtro. Carlos Fernando Roldán Zarate | H69: 5550901100 ext.1202
A70: =COUNTIF($E$1:E70,'Proyectos vigentes'!$C$4) -> 6 | B70: 69 | C70: 829-444 | D70: Unidad Profesional Interdisciplinaria de Ingeniería y Ciencias Sociales y Administrativas (UPIICSA) | E70: Ambiental | F70: Emprendimiento de cooperativas de GICOOPS | G70: Dr. Igor Antonio Rivera González | H70: 55-5624 2000 ext. 70265
A71: =COUNTIF($E$1:E71,'Proyectos vigentes'!$C$4) -> 6 | B71: 70 | C71: 829-445 | D71: Secretaría de Energía | E71: Química | F71: Análisis del mercado de petrolíferos en México | G71: Lic. Julieta Acosta Minquini | H71: 55-5000 6000 ext. 3119
A72: =COUNTIF($E$1:E72,'Proyectos vigentes'!$C$4) -> 6 | B72: 71 | C72: 829-447 | D72: Red de Transporte de pasajeros de la Ciudad de México | E72: Ambiental | F72: Servicio Social para la administración Integral de la Red de Transporte de pasajeros de la Ciudad de México | G72: C. P. Tania Edith Reyes Varela Lic. Lucia Paola Carrillo Olvera Lic. Valeria Jacqueline Ávila Arias Lic. Elliots Luis Miranda León | H72: 55-1328-6300 ext. 6423, 6387
A73: =COUNTIF($E$1:E73,'Proyectos vigentes'!$C$4) -> 6 | B73: 72 | C73: 829-447 | D73: Red de Transporte de pasajeros de la Ciudad de México | E73: Civil | F73: Servicio Social para la administración Integral de la Red de Transporte de pasajeros de la Ciudad de México | G73: C. P. Tania Edith Reyes Varela Lic. Lucia Paola Carrillo Olvera Lic. Valeria Jacqueline Ávila Arias Lic. Elliots Luis Miranda León | H73: 55-1328-6300 ext. 6423, 6387
A74: =COUNTIF($E$1:E74,'Proyectos vigentes'!$C$4) -> 6 | B74: 73 | C74: 829-447 | D74: Red de Transporte de pasajeros de la Ciudad de México | E74: Computación | F74: Servicio Social para la administración Integral de la Red de Transporte de pasajeros de la Ciudad de México | G74: C. P. Tania Edith Reyes Varela Lic. Lucia Paola Carrillo Olvera Lic. Valeria Jacqueline Ávila Arias Lic. Elliots Luis Miranda León | H74: 55-1328-6300 ext. 6423, 6387
A75: =COUNTIF($E$1:E75,'Proyectos vigentes'!$C$4) -> 6 | B75: 74 | C75: 829-447 | D75: Red de Transporte de pasajeros de la Ciudad de México | E75: Eléctrica | F75: Servicio Social para la administración Integral de la Red de Transporte de pasajeros de la Ciudad de México | G75: C. P. Tania Edith Reyes Varela Lic. Lucia Paola Carrillo Olvera Lic. Valeria Jacqueline Ávila Arias Lic. Elliots Luis Miranda León | H75: 55-1328-6300 ext. 6423, 6387
A76: =COUNTIF($E$1:E76,'Proyectos vigentes'!$C$4) -> 6 | B76: 75 | C76: 829-447 | D76: Red de Transporte de pasajeros de la Ciudad de México | E76: Electrónica | F76: Servicio Social para la administración Integral de la Red de Transporte de pasajeros de la Ciudad de México | G76: C. P. Tania Edith Reyes Varela Lic. Lucia Paola Carrillo Olvera Lic. Valeria Jacqueline Ávila Arias Lic. Elliots Luis Miranda León | H76: 55-1328-6300 ext. 6423, 6387
A77: =COUNTIF($E$1:E77,'Proyectos vigentes'!$C$4) -> 6 | B77: 76 | C77: 829-447 | D77: Red de Transporte de pasajeros de la Ciudad de México | E77: Industrial | F77: Servicio Social para la administración Integral de la Red de Transporte de pasajeros de la Ciudad de México | G77: C. P. Tania Edith Reyes Varela Lic. Lucia Paola Carrillo Olvera Lic. Valeria Jacqueline Ávila Arias Lic. Elliots Luis Miranda León | H77: 55-1328-6300 ext. 6423, 6387
A78: =COUNTIF($E$1:E78,'Proyectos vigentes'!$C$4) -> 7 | B78: 77 | C78: 829-447 | D78: Red de Transporte de pasajeros de la Ciudad de México | E78: Mecánica | F78: Servicio Social para la administración Integral de la Red de Transporte de pasajeros de la Ciudad de México | G78: C. P. Tania Edith Reyes Varela Lic. Lucia Paola Carrillo Olvera Lic. Valeria Jacqueline Ávila Arias Lic. Elliots Luis Miranda León | H78: 55-1328-6300 ext. 6423, 6387
A79: =COUNTIF($E$1:E79,'Proyectos vigentes'!$C$4) -> 7 | B79: 78 | C79: 829-447 | D79: Red de Transporte de pasajeros de la Ciudad de México | E79: Metalúrgica | F79: Servicio Social para la administración Integral de la Red de Transporte de pasajeros de la Ciudad de México | G79: C. P. Tania Edith Reyes Varela Lic. Lucia Paola Carrillo Olvera Lic. Valeria Jacqueline Ávila Arias Lic. Elliots Luis Miranda León | H79: 55-1328-6300 ext. 6423, 6387
A80: =COUNTIF($E$1:E80,'Proyectos vigentes'!$C$4) -> 7 | B80: 79 | C80: 829-449 | D80: Instituto Politécnico Nacional, Escuela Nacional de Ciencias Biológicas, Casco de Santo Tomás | E80: Ambiental | F80: Análisis de Agua Potable, Residual y Residual Tratada | G80: M. en E. María Magdalena Monroy Mendieta | H80: 55-5341-2335
A81: =COUNTIF($E$1:E81,'Proyectos vigentes'!$C$4) -> 7 | B81: 80 | C81: 829-449 | D81: Instituto Politécnico Nacional, Escuela Nacional de Ciencias Biológicas, Casco de Santo Tomás | E81: Computación | F81: Análisis de Agua Potable, Residual y Residual Tratada | G81: M. en E. María Magdalena Monroy Mendieta | H81: 55-5341-2335
A82: =COUNTIF($E$1:E82,'Proyectos vigentes'!$C$4) -> 7 | B82: 81 | C82: 829-449 | D82: Instituto Politécnico Nacional, Escuela Nacional de Ciencias Biológicas, Casco de Santo Tomás | E82: Química | F82: Análisis de Agua Potable, Residual y Residual Tratada | G82: M. en E. María Magdalena Monroy Mendieta | H82: 55-5341-2335
A83: =COUNTIF($E$1:E83,'Proyectos vigentes'!$C$4) -> 7 | B83: 82 | C83: 830-066 | D83: Asociación Nacional de Industriales del Presfuerzo y la Prefabricación, Asociación Civil. ANIPPAC | E83: Civil | F83: Experimentación de conexiones prefabricadas de concreto | G83: Lic. Leticia Amador Nova Dr. Eduardo Arellano Méndez | H83: 55-4122-5194 55-5318-9000 ext. 9461
A84: =COUNTIF($E$1:E84,'Proyectos vigentes'!$C$4) -> 7 | B84: 83 | C84: 829-451 | D84: Centros de Integración Juvenil, A.C. | E84: Computación | F84: Prevención, tratamiento e investigación de las adicciones | G84: Lic. Laura Marcela Rodríguez Pérez | H84: 55 5999 4949, ext. 1634 y 1635
A85: =COUNTIF($E$1:E85,'Proyectos vigentes'!$C$4) -> 7 | B85: 84 | C85: 829-453 | D85: Universidad Nacional Autónoma de México-Facultad de Ingeniería | E85: Química | F85: Apoyo en investigación, docencia e innovación científica y tecnológica en Ingeniería Ambiental | G85: Dr. Luis Antonio García Villanueva Ing. Claudia Elisa Sánchez Navarro | H85: 5556228001 ext 1223 5556228000 ext 1237
A86: =COUNTIF($E$1:E86,'Proyectos vigentes'!$C$4) -> 7 | B86: 85 | C86: 829-457 | D86: Ayuntamiento de Chapa de Mota, Estado de México | E86: Ambiental | F86: Desarrollo de documentos del PROMACC y del POEL | G86: Ing. Elizabeth Ruiz Arreazola, Mtra. Griselda González Cardoso | H86: 588 9920209
A87: =COUNTIF($E$1:E87,'Proyectos vigentes'!$C$4) -> 7 | B87: 86 | C87: 959 | D87: UAM | E87: Ambiental | F87: Mantenimiento y clasificación de la población de las lombrices de tierra Eisenia foetida utilizadas para el composteo de residuos orgánicos. | G87: Mtra. María del Rocío Cruz Colín Dra. María Teresa Castañeda Briones Mtro. Miguel Ávila Jiménez | H87: 55-5318-9000 ext. 9029
A88: =COUNTIF($E$1:E88,'Proyectos vigentes'!$C$4) -> 7 | B88: 87 | C88: 959 | D88: UAM | E88: Química | F88: Mantenimiento y clasificación de la población de las lombrices de tierra Eisenia foetida utilizadas para el composteo de residuos orgánicos. | G88: Mtra. María del Rocío Cruz Colín Dra. María Teresa Castañeda Briones Mtro. Miguel Ávila Jiménez | H88: 55-5318-9000 ext. 9029
A89: =COUNTIF($E$1:E89,'Proyectos vigentes'!$C$4) -> 7 | B89: 88 | C89: 964 | D89: UAM | E89: Ambiental | F89: Simulación y análisis experimental en energía solar. | G89: Hilario Terres Peña | H89: 5318-9061
A90: =COUNTIF($E$1:E90,'Proyectos vigentes'!$C$4) -> 8 | B90: 89 | C90: 964 | D90: UAM | E90: Mecánica | F90: Simulación y análisis experimental en energía solar. | G90: Hilario Terres Peña | H90: 5318-9061
A91: =COUNTIF($E$1:E91,'Proyectos vigentes'!$C$4) -> 8 | B91: 90 | C91: 964 | D91: UAM | E91: Química | F91: Simulación y análisis experimental en energía solar. | G91: Hilario Terres Peña | H91: 5318-9061
A92: =COUNTIF($E$1:E92,'Proyectos vigentes'!$C$4) -> 8 | B92: 91 | C92: 964 | D92: UAM | E92: Electrónica | F92: Simulación y análisis experimental en energía solar. | G92: Hilario Terres Peña | H92: 5318-9061
A93: =COUNTIF($E$1:E93,'Proyectos vigentes'!$C$4) -> 8 | B93: 92 | C93: 964 | D93: UAM | E93: Física | F93: Simulación y análisis experimental en energía solar. | G93: Hilario Terres Peña | H93: 5318-9061
A94: =COUNTIF($E$1:E94,'Proyectos vigentes'!$C$4) -> 8 | B94: 93 | C94: 991 | D94: UAM | E94: Ambiental | F94: Operación de la planta piloto de tratamiento de aguas residuales de la UAM-A. | G94: Dr. Israel Labastida Núñez M. en C. I. Margarita Beltrán Villavicencio Dra. Maribel Velasco Pérez Dr. Jaime Alejandro Paulino Granados Samaniego | H94: 55-5318-9075
A95: =COUNTIF($E$1:E95,'Proyectos vigentes'!$C$4) -> 8 | B95: 94 | C95: 991 | D95: UAM | E95: Eléctrica | F95: Operación de la planta piloto de tratamiento de aguas residuales de la UAM-A. | G95: Dr. Israel Labastida Núñez M. en C. I. Margarita Beltrán Villavicencio Dra. Maribel Velasco Pérez Dr. Jaime Alejandro Paulino Granados Samaniego | H95: 55-5318-9075
A96: =COUNTIF($E$1:E96,'Proyectos vigentes'!$C$4) -> 8 | B96: 95 | C96: 991 | D96: UAM | E96: Computación | F96: Operación de la planta piloto de tratamiento de aguas residuales de la UAM-A. | G96: Dr. Israel Labastida Núñez M. en C. I. Margarita Beltrán Villavicencio Dra. Maribel Velasco Pérez Dr. Jaime Alejandro Paulino Granados Samaniego | H96: 55-5318-9075
A97: =COUNTIF($E$1:E97,'Proyectos vigentes'!$C$4) -> 8 | B97: 96 | C97: 991 | D97: UAM | E97: Física | F97: Operación de la planta piloto de tratamiento de aguas residuales de la UAM-A. | G97: Dr. Israel Labastida Núñez M. en C. I. Margarita Beltrán Villavicencio Dra. Maribel Velasco Pérez Dr. Jaime Alejandro Paulino Granados Samaniego | H97: 55-5318-9075
A98: =COUNTIF($E$1:E98,'Proyectos vigentes'!$C$4) -> 8 | B98: 97 | C98: 991 | D98: UAM | E98: Industrial | F98: Operación de la planta piloto de tratamiento de aguas residuales de la UAM-A. | G98: Dr. Israel Labastida Núñez M. en C. I. Margarita Beltrán Villavicencio Dra. Maribel Velasco Pérez Dr. Jaime Alejandro Paulino Granados Samaniego | H98: 55-5318-9075
A99: =COUNTIF($E$1:E99,'Proyectos vigentes'!$C$4) -> 9 | B99: 98 | C99: 991 | D99: UAM | E99: Mecánica | F99: Operación de la planta piloto de tratamiento de aguas residuales de la UAM-A. | G99: Dr. Israel Labastida Núñez M. en C. I. Margarita Beltrán Villavicencio Dra. Maribel Velasco Pérez Dr. Jaime Alejandro Paulino Granados Samaniego | H99: 55-5318-9075
A100: =COUNTIF($E$1:E100,'Proyectos vigentes'!$C$4) -> 9 | B100: 99 | C100: 991 | D100: UAM | E100: Química | F100: Operación de la planta piloto de tratamiento de aguas residuales de la UAM-A. | G100: Dr. Israel Labastida Núñez M. en C. I. Margarita Beltrán Villavicencio Dra. Maribel Velasco Pérez Dr. Jaime Alejandro Paulino Granados Samaniego | H100: 55-5318-9075
A101: =COUNTIF($E$1:E101,'Proyectos vigentes'!$C$4) -> 9 | B101: 100 | C101: 816 | D101: UAM | E101: Ambiental | F101: Apoyo al Programa Interno de Protección Civil de la UAM-Azcapotzalco. | G101: Ing. Roberto Carlos Vázquez Solís Dra. Rosa María Espinosa Valdemar | H101: 555318-9545
A102: =COUNTIF($E$1:E102,'Proyectos vigentes'!$C$4) -> 9 | B102: 101 | C102: 816 | D102: UAM | E102: Civil | F102: Apoyo al Programa Interno de Protección Civil de la UAM-Azcapotzalco. | G102: Ing. Roberto Carlos Vázquez Solís Dra. Rosa María Espinosa Valdemar | H102: 555318-9545
A103: =COUNTIF($E$1:E103,'Proyectos vigentes'!$C$4) -> 9 | B103: 102 | C103: 816 | D103: UAM | E103: Computación | F103: Apoyo al Programa Interno de Protección Civil de la UAM-Azcapotzalco. | G103: Ing. Roberto Carlos Vázquez Solís Dra. Rosa María Espinosa Valdemar | H103: 555318-9545
A104: =COUNTIF($E$1:E104,'Proyectos vigentes'!$C$4) -> 9 | B104: 103 | C104: 816 | D104: UAM | E104: Eléctrica | F104: Apoyo al Programa Interno de Protección Civil de la UAM-Azcapotzalco. | G104: Ing. Roberto Carlos Vázquez Solís Dra. Rosa María Espinosa Valdemar | H104: 555318-9545
A105: =COUNTIF($E$1:E105,'Proyectos vigentes'!$C$4) -> 9 | B105: 104 | C105: 816 | D105: UAM | E105: Electrónica | F105: Apoyo al Programa Interno de Protección Civil de la UAM-Azcapotzalco. | G105: Ing. Roberto Carlos Vázquez Solís Dra. Rosa María Espinosa Valdemar | H105: 555318-9545
A106: =COUNTIF($E$1:E106,'Proyectos vigentes'!$C$4) -> 9 | B106: 105 | C106: 816 | D106: UAM | E106: Física | F106: Apoyo al Programa Interno de Protección Civil de la UAM-Azcapotzalco. | G106: Ing. Roberto Carlos Vázquez Solís Dra. Rosa María Espinosa Valdemar | H106: 555318-9545
A107: =COUNTIF($E$1:E107,'Proyectos vigentes'!$C$4) -> 9 | B107: 106 | C107: 816 | D107: UAM | E107: Industrial | F107: Apoyo al Programa Interno de Protección Civil de la UAM-Azcapotzalco. | G107: Ing. Roberto Carlos Vázquez Solís Dra. Rosa María Espinosa Valdemar | H107: 555318-9545
A108: =COUNTIF($E$1:E108,'Proyectos vigentes'!$C$4) -> 10 | B108: 107 | C108: 816 | D108: UAM | E108: Mecánica | F108: Apoyo al Programa Interno de Protección Civil de la UAM-Azcapotzalco. | G108: Ing. Roberto Carlos Vázquez Solís Dra. Rosa María Espinosa Valdemar | H108: 555318-9545
A109: =COUNTIF($E$1:E109,'Proyectos vigentes'!$C$4) -> 10 | B109: 108 | C109: 816 | D109: UAM | E109: Metalúrgica | F109: Apoyo al Programa Interno de Protección Civil de la UAM-Azcapotzalco. | G109: Ing. Roberto Carlos Vázquez Solís Dra. Rosa María Espinosa Valdemar | H109: 555318-9545
A110: =COUNTIF($E$1:E110,'Proyectos vigentes'!$C$4) -> 10 | B110: 109 | C110: 816 | D110: UAM | E110: Química | F110: Apoyo al Programa Interno de Protección Civil de la UAM-Azcapotzalco. | G110: Ing. Roberto Carlos Vázquez Solís Dra. Rosa María Espinosa Valdemar | H110: 555318-9545
A111: =COUNTIF($E$1:E111,'Proyectos vigentes'!$C$4) -> 10 | B111: 110 | C111: 764 | D111: UAM | E111: Industrial | F111: Apoyo a la Coordinación de la Carrera de Ingeniería Industrial. | G111: Dr. Miguel Ángel López Ontiveros | H111: 555318-9016
A112: =COUNTIF($E$1:E112,'Proyectos vigentes'!$C$4) -> 10 | B112: 111 | C112: 474 | D112: UAM | E112: Ambiental | F112: Calidad sanitaria de los alimentos preparados en el comedor de la UAM-Azcapotzalco | G112: Dra. Maria Teresa Castañeda Briones M. en C. I. Maria del Rocío Cruz Colín | H112: 5318-9596 5318-9361
A113: =COUNTIF($E$1:E113,'Proyectos vigentes'!$C$4) -> 10 | B113: 112 | C113: 474 | D113: UAM | E113: Química | F113: Calidad sanitaria de los alimentos preparados en el comedor de la UAM-Azcapotzalco | G113: Dra. Maria Teresa Castañeda Briones M. en C. I. Maria del Rocío Cruz Colín | H113: 5318-9596 5318-9361
A114: =COUNTIF($E$1:E114,'Proyectos vigentes'!$C$4) -> 10 | B114: 113 | C114: 733 | D114: UAM | E114: Todas las carreras CBI | F114: Apoyo en actividades universitarias a los alumnos de nuevo ingreso | G114: Marina Salazar Antúnez | H114: 5318-9494
A115: =COUNTIF($E$1:E115,'Proyectos vigentes'!$C$4) -> 10 | B115: 114 | C115: 742 | D115: UAM | E115: Computación | F115: Sistemas de información | G115: Ing. Juan Carlos Pedral Valencia Ing. Rafael Alvarado Ramírez Dra. Yadira Zavala Osorio | H115: 5318-9351
A116: =COUNTIF($E$1:E116,'Proyectos vigentes'!$C$4) -> 10 | B116: 115 | C116: 742 | D116: UAM | E116: Eléctrica | F116: Sistemas de información | G116: Ing. Juan Carlos Pedral Valencia Ing. Rafael Alvarado Ramírez Dra. Yadira Zavala Osorio | H116: 5318-9351
A117: =COUNTIF($E$1:E117,'Proyectos vigentes'!$C$4) -> 10 | B117: 116 | C117: 742 | D117: UAM | E117: Electrónica | F117: Sistemas de información | G117: Ing. Juan Carlos Pedral Valencia Ing. Rafael Alvarado Ramírez Dra. Yadira Zavala Osorio | H117: 5318-9351
A118: =COUNTIF($E$1:E118,'Proyectos vigentes'!$C$4) -> 10 | B118: 117 | C118: 742 | D118: UAM | E118: Industrial | F118: Sistemas de información | G118: Ing. Juan Carlos Pedral Valencia Ing. Rafael Alvarado Ramírez Dra. Yadira Zavala Osorio | H118: 5318-9351
A119: =COUNTIF($E$1:E119,'Proyectos vigentes'!$C$4) -> 10 | B119: 118 | C119: 744 | D119: UAM | E119: Computación | F119: Paquetes de software | G119: Juan Carlos Pedral Valencia Saúl Figueroa Garcia Yadira Zavala Osorio | H119: 53189263
A120: =COUNTIF($E$1:E120,'Proyectos vigentes'!$C$4) -> 10 | B120: 119 | C120: 744 | D120: UAM | E120: Eléctrica | F120: Paquetes de software | G120: Juan Carlos Pedral Valencia Saúl Figueroa Garcia Yadira Zavala Osorio | H120: 53189263
A121: =COUNTIF($E$1:E121,'Proyectos vigentes'!$C$4) -> 10 | B121: 120 | C121: 744 | D121: UAM | E121: Electrónica | F121: Paquetes de software | G121: Juan Carlos Pedral Valencia Saúl Figueroa Garcia Yadira Zavala Osorio | H121: 53189263
A122: =COUNTIF($E$1:E122,'Proyectos vigentes'!$C$4) -> 10 | B122: 121 | C122: 744 | D122: UAM | E122: Industrial | F122: Paquetes de software | G122: Juan Carlos Pedral Valencia Saúl Figueroa Garcia Yadira Zavala Osorio | H122: 53189263
A123: =COUNTIF($E$1:E123,'Proyectos vigentes'!$C$4) -> 10 | B123: 122 | C123: 745 | D123: UAM | E123: Electrónica | F123: Fallas en equipos de cómputo y redes de datos | G123: Juan Carlos Pedral Valencia Justino Alfonso Barrera Pérez Yadira Zavala Osorio | H123: 53189259
A124: =COUNTIF($E$1:E124,'Proyectos vigentes'!$C$4) -> 10 | B124: 123 | C124: 745 | D124: UAM | E124: Computación | F124: Fallas en equipos de cómputo y redes de datos | G124: Juan Carlos Pedral Valencia Justino Alfonso Barrera Pérez Yadira Zavala Osorio | H124: 53189259
A125: =COUNTIF($E$1:E125,'Proyectos vigentes'!$C$4) -> 10 | B125: 124 | C125: 945 | D125: UAM | E125: Todas las carreras CBI | F125: Implementación, desarrollo y automatización de equipos de laboratorio para investigación, desarrollados en L.S.D. | G125: Dra. María Gabriela Báez Juárez Dr. Enrique Flores Olmedo Dr. Arturo Arreola Lucas, Dr. Víctor Domínguez Rocha M. en C. Elisa Guillaumín España | H125: 5318-9575
A126: =COUNTIF($E$1:E126,'Proyectos vigentes'!$C$4) -> 10 | B126: 125 | C126: 946 | D126: UAM | E126: Todas las carreras CBI | F126: Implementación y desarrollo de aplicaciones informáticas en el Laboratorio de Sistemas Dinámicos (L.S.D.) | G126: Dra. María Gabriela Báez Juárez Dr. Enrique Flores Olmedo Dr. Arturo Arreola Lucas, Dr. Víctor Domínguez Rocha M. en C. Elisa Guillaumín España | H126: 5318-9575
A127: =COUNTIF($E$1:E127,'Proyectos vigentes'!$C$4) -> 10 | B127: 126 | C127: 919 | D127: UAM | E127: Ambiental | F127: Creación, mantenimiento y actualización de la colección de cultivos microbianos del laboratorio de microbiología ambiental de la UAM-Azcapotzalco | G127: Mtra. María del Roció Cruz Colín Dra. María Teresa Castañeda Briones Mtro. Miguel Ávila Jiménez | H127: 5318-9361, 5318-9000 ext. 2220
A128: =COUNTIF($E$1:E128,'Proyectos vigentes'!$C$4) -> 10 | B128: 127 | C128: 919 | D128: UAM | E128: Química | F128: Creación, mantenimiento y actualización de la colección de cultivos microbianos del laboratorio de microbiología ambiental de la UAM-Azcapotzalco | G128: Mtra. María del Roció Cruz Colín Dra. María Teresa Castañeda Briones Mtro. Miguel Ávila Jiménez | H128: 5318-9361, 5318-9000 ext. 2220
A129: =COUNTIF($E$1:E129,'Proyectos vigentes'!$C$4) -> 10 | B129: 128 | C129: 1076 | D129: UAM | E129: Ambiental | F129: P.G.I.R.S. de la UAM-Azcapotzalco SEPARACCIÓN | G129: Dra. Rosa María Espinosa Valdemar | H129: 5318-9062
A130: =COUNTIF($E$1:E130,'Proyectos vigentes'!$C$4) -> 10 | B130: 129 | C130: 1076 | D130: UAM | E130: Computación | F130: P.G.I.R.S. de la UAM-Azcapotzalco SEPARACCIÓN | G130: Dra. Rosa María Espinosa Valdemar | H130: 5318-9062
A131: =COUNTIF($E$1:E131,'Proyectos vigentes'!$C$4) -> 10 | B131: 130 | C131: 1076 | D131: UAM | E131: Eléctrica | F131: P.G.I.R.S. de la UAM-Azcapotzalco SEPARACCIÓN | G131: Dra. Rosa María Espinosa Valdemar | H131: 5318-9062
A132: =COUNTIF($E$1:E132,'Proyectos vigentes'!$C$4) -> 10 | B132: 131 | C132: 1076 | D132: UAM | E132: Física | F132: P.G.I.R.S. de la UAM-Azcapotzalco SEPARACCIÓN | G132: Dra. Rosa María Espinosa Valdemar | H132: 5318-9062
A133: =COUNTIF($E$1:E133,'Proyectos vigentes'!$C$4) -> 10 | B133: 132 | C133: 1076 | D133: UAM | E133: Industrial | F133: P.G.I.R.S. de la UAM-Azcapotzalco SEPARACCIÓN | G133: Dra. Rosa María Espinosa Valdemar | H133: 5318-9062
A134: =COUNTIF($E$1:E134,'Proyectos vigentes'!$C$4) -> 11 | B134: 133 | C134: 1076 | D134: UAM | E134: Mecánica | F134: P.G.I.R.S. de la UAM-Azcapotzalco SEPARACCIÓN | G134: Dra. Rosa María Espinosa Valdemar | H134: 5318-9062
A135: =COUNTIF($E$1:E135,'Proyectos vigentes'!$C$4) -> 11 | B135: 134 | C135: 1076 | D135: UAM | E135: Química | F135: P.G.I.R.S. de la UAM-Azcapotzalco SEPARACCIÓN | G135: Dra. Rosa María Espinosa Valdemar | H135: 5318-9062
A136: =COUNTIF($E$1:E136,'Proyectos vigentes'!$C$4) -> 11 | B136: 135 | C136: 1107 | D136: UAM | E136: Ambiental | F136: Muestreo y análisis de compuestos tóxicos en el ambiente | G136: Dra. Violeta Mugica Álvarez Dra. Brenda Liz Valle Hernández Mtra. Griselda González Cardoso Dr. José de Jesús Figueroa Lara Dr. Adolfo Hernández Moreno | H136: 5553189570
A137: =COUNTIF($E$1:E137,'Proyectos vigentes'!$C$4) -> 11 | B137: 136 | C137: 1107 | D137: UAM | E137: Computación | F137: Muestreo y análisis de compuestos tóxicos en el ambiente | G137: Dra. Violeta Mugica Álvarez Dra. Brenda Liz Valle Hernández Mtra. Griselda González Cardoso Dr. José de Jesús Figueroa Lara Dr. Adolfo Hernández Moreno | H137: 5553189570
A138: =COUNTIF($E$1:E138,'Proyectos vigentes'!$C$4) -> 11 | B138: 137 | C138: 1107 | D138: UAM | E138: Física | F138: Muestreo y análisis de compuestos tóxicos en el ambiente | G138: Dra. Violeta Mugica Álvarez Dra. Brenda Liz Valle Hernández Mtra. Griselda González Cardoso Dr. José de Jesús Figueroa Lara Dr. Adolfo Hernández Moreno | H138: 5553189570
A139: =COUNTIF($E$1:E139,'Proyectos vigentes'!$C$4) -> 11 | B139: 138 | C139: 1107 | D139: UAM | E139: Metalúrgica | F139: Muestreo y análisis de compuestos tóxicos en el ambiente | G139: Dra. Violeta Mugica Álvarez Dra. Brenda Liz Valle Hernández Mtra. Griselda González Cardoso Dr. José de Jesús Figueroa Lara Dr. Adolfo Hernández Moreno | H139: 5553189570
A140: =COUNTIF($E$1:E140,'Proyectos vigentes'!$C$4) -> 11 | B140: 139 | C140: 1107 | D140: UAM | E140: Industrial | F140: Muestreo y análisis de compuestos tóxicos en el ambiente | G140: Dra. Violeta Mugica Álvarez Dra. Brenda Liz Valle Hernández Mtra. Griselda González Cardoso Dr. José de Jesús Figueroa Lara Dr. Adolfo Hernández Moreno | H140: 5553189570
A141: =COUNTIF($E$1:E141,'Proyectos vigentes'!$C$4) -> 11 | B141: 140 | C141: 1107 | D141: UAM | E141: Química | F141: Muestreo y análisis de compuestos tóxicos en el ambiente | G141: Dra. Violeta Mugica Álvarez Dra. Brenda Liz Valle Hernández Mtra. Griselda González Cardoso Dr. José de Jesús Figueroa Lara Dr. Adolfo Hernández Moreno | H141: 5553189570
A142: =COUNTIF($E$1:E142,'Proyectos vigentes'!$C$4) -> 12 | B142: 141 | C142: 1107 | D142: UAM | E142: Mecánica | F142: Muestreo y análisis de compuestos tóxicos en el ambiente | G142: Dra. Violeta Mugica Álvarez Dra. Brenda Liz Valle Hernández Mtra. Griselda González Cardoso Dr. José de Jesús Figueroa Lara Dr. Adolfo Hernández Moreno | H142: 5553189570
A143: =COUNTIF($E$1:E143,'Proyectos vigentes'!$C$4) -> 12 | B143: 142 | C143: 1107 | D143: UAM | E143: Eléctrica | F143: Muestreo y análisis de compuestos tóxicos en el ambiente | G143: Dra. Violeta Mugica Álvarez Dra. Brenda Liz Valle Hernández Mtra. Griselda González Cardoso Dr. José de Jesús Figueroa Lara Dr. Adolfo Hernández Moreno | H143: 5553189570
A144: =COUNTIF($E$1:E144,'Proyectos vigentes'!$C$4) -> 12 | B144: 143 | C144: 1108 | D144: UAM | E144: Todas las carreras CBI | F144: Uso eficiente de la energía eléctrica y generación con fuentes alternas | G144: Mtro. Eduardo Campero Littlewood Dr. Felipe de Jesús González Montañez Dr. Juan Carlos Olivares Galván Dr. Víctor Manuel Jiménez Mondragón. | H144: 5318-9380, 5318-9000 ext. 2191
A145: =COUNTIF($E$1:E145,'Proyectos vigentes'!$C$4) -> 12 | B145: 144 | C145: 1109 | D145: UAM | E145: Eléctrica | F145: Apoyo a docentes e investigadores en el campo del electromagnetismo y los gases ionizados | G145: Dr. Arturo Robledo Martínez Dr. Pedro Pereyra Padilla | H145: 55-5318-9000 ext. 9007 55- 5318-9000 ext. 9018
A146: =COUNTIF($E$1:E146,'Proyectos vigentes'!$C$4) -> 12 | B146: 145 | C146: 1109 | D146: UAM | E146: Electrónica | F146: Apoyo a docentes e investigadores en el campo del electromagnetismo y los gases ionizados | G146: Dr. Arturo Robledo Martínez Dr. Pedro Pereyra Padilla | H146: 55-5318-9000 ext. 9007 55- 5318-9000 ext. 9018
A147: =COUNTIF($E$1:E147,'Proyectos vigentes'!$C$4) -> 12 | B147: 146 | C147: 1109 | D147: UAM | E147: Física | F147: Apoyo a docentes e investigadores en el campo del electromagnetismo y los gases ionizados | G147: Dr. Arturo Robledo Martínez Dr. Pedro Pereyra Padilla | H147: 55-5318-9000 ext. 9007 55- 5318-9000 ext. 9018
A148: =COUNTIF($E$1:E148,'Proyectos vigentes'!$C$4) -> 12 | B148: 147 | C148: 1123 | D148: UAM | E148: Todas las carreras CBI | F148: Servicio Social de apoyo en UEA de alta demanda en el sistema de aprendizaje individualizado (SAI) | G148: Dr. Ángel Martínez Meléndez | H148: 55-5318-9010
A149: =COUNTIF($E$1:E149,'Proyectos vigentes'!$C$4) -> 12 | B149: 148 | C149: 1126 | D149: UAM | E149: Todas las carreras CBI | F149: Apoyo a las Coordinaciones de estudios de la División | G149: Dra. Teresa Merchand Hernández Dra. Grethell Pérez Sánchez Dra. Angeles Belém Priego Sánchez Dr. Jorge Luis Flores Moreno | H149: 5318-9003
A150: =COUNTIF($E$1:E150,'Proyectos vigentes'!$C$4) -> 12 | B150: 149 | C150: 1143 | D150: UAM | E150: Computación | F150: Diseño de prototipos experimentales para sistemas complejos | G150: Eduardo Basurto Uribe Catalina Ester Haro Pérez Armando Gómez Vieyra Grethell Georgina Pérez Sánchez Carlos Alejandro Vargas Gerardo Miguel Odriozola Prego Leonardo Di Girolamo Sigalotti Díaz | H150: 5318-9382 5318-9020
A151: =COUNTIF($E$1:E151,'Proyectos vigentes'!$C$4) -> 12 | B151: 150 | C151: 1143 | D151: UAM | E151: Eléctrica | F151: Diseño de prototipos experimentales para sistemas complejos | G151: Eduardo Basurto Uribe Catalina Ester Haro Pérez Armando Gómez Vieyra Grethell Georgina Pérez Sánchez Carlos Alejandro Vargas Gerardo Miguel Odriozola Prego Leonardo Di Girolamo Sigalotti Díaz | H151: 5318-9382 5318-9020
A152: =COUNTIF($E$1:E152,'Proyectos vigentes'!$C$4) -> 12 | B152: 151 | C152: 1143 | D152: UAM | E152: Electrónica | F152: Diseño de prototipos experimentales para sistemas complejos | G152: Eduardo Basurto Uribe Catalina Ester Haro Pérez Armando Gómez Vieyra Grethell Georgina Pérez Sánchez Carlos Alejandro Vargas Gerardo Miguel Odriozola Prego Leonardo Di Girolamo Sigalotti Díaz | H152: 5318-9382 5318-9020
A153: =COUNTIF($E$1:E153,'Proyectos vigentes'!$C$4) -> 12 | B153: 152 | C153: 1143 | D153: UAM | E153: Física | F153: Diseño de prototipos experimentales para sistemas complejos | G153: Eduardo Basurto Uribe Catalina Ester Haro Pérez Armando Gómez Vieyra Grethell Georgina Pérez Sánchez Carlos Alejandro Vargas Gerardo Miguel Odriozola Prego Leonardo Di Girolamo Sigalotti Díaz | H153: 5318-9382 5318-9020
A154: =COUNTIF($E$1:E154,'Proyectos vigentes'!$C$4) -> 13 | B154: 153 | C154: 1143 | D154: UAM | E154: Mecánica | F154: Diseño de prototipos experimentales para sistemas complejos | G154: Eduardo Basurto Uribe Catalina Ester Haro Pérez Armando Gómez Vieyra Grethell Georgina Pérez Sánchez Carlos Alejandro Vargas Gerardo Miguel Odriozola Prego | H154: 5318-9382 5318-9020
A155: =COUNTIF($E$1:E155,'Proyectos vigentes'!$C$4) -> 13 | B155: 154 | C155: 1143 | D155: UAM | E155: Química | F155: Diseño de prototipos experimentales para sistemas complejos | G155: Eduardo Basurto Uribe Catalina Ester Haro Pérez Armando Gómez Vieyra Grethell Georgina Pérez Sánchez Carlos Alejandro Vargas Gerardo Miguel Odriozola Prego Leonardo Di Girolamo Sigalotti Díaz | H155: 5318-9382 5318-9020
A156: =COUNTIF($E$1:E156,'Proyectos vigentes'!$C$4) -> 13 | B156: 155 | C156: 1146 | D156: UAM | E156: Computación | F156: Centro de apoyo para docencia e investigación (CADI) | G156: Dr. Ernesto Rodrigo Vázquez Cerón | H156: 5318-9030
A157: =COUNTIF($E$1:E157,'Proyectos vigentes'!$C$4) -> 13 | B157: 156 | C157: 1146 | D157: UAM | E157: Eléctrica | F157: Centro de apoyo para docencia e investigación (CADI) | G157: Dr. Ernesto Rodrigo Vázquez Cerón | H157: 5318-9030
A158: =COUNTIF($E$1:E158,'Proyectos vigentes'!$C$4) -> 13 | B158: 157 | C158: 1146 | D158: UAM | E158: Electrónica | F158: Centro de apoyo para docencia e investigación (CADI) | G158: Dr. Ernesto Rodrigo Vázquez Cerón | H158: 5318-9030
A159: =COUNTIF($E$1:E159,'Proyectos vigentes'!$C$4) -> 13 | B159: 158 | C159: 1146 | D159: UAM | E159: Física | F159: Centro de apoyo para docencia e investigación (CADI) | G159: Dr. Ernesto Rodrigo Vázquez Cerón | H159: 5318-9030
A160: =COUNTIF($E$1:E160,'Proyectos vigentes'!$C$4) -> 13 | B160: 159 | C160: 1146 | D160: UAM | E160: Industrial | F160: Centro de apoyo para docencia e investigación (CADI) | G160: Dr. Ernesto Rodrigo Vázquez Cerón | H160: 5318-9030
A161: =COUNTIF($E$1:E161,'Proyectos vigentes'!$C$4) -> 14 | B161: 160 | C161: 1146 | D161: UAM | E161: Mecánica | F161: Centro de apoyo para docencia e investigación (CADI) | G161: Dr. Ernesto Rodrigo Vázquez Cerón | H161: 5318-9030
A162: =COUNTIF($E$1:E162,'Proyectos vigentes'!$C$4) -> 14 | B162: 161 | C162: 534 | D162: UAM | E162: Ambiental | F162: Tratamiento de residuos líquidos mediante procesos electroquímicos y biológicos | G162: Sergio Martínez Delgadillo Víctor Xiunel Mendoza Escamilla Dra. Silvia Cristina Iuga | H162: 5318-9007
A163: =COUNTIF($E$1:E163,'Proyectos vigentes'!$C$4) -> 14 | B163: 162 | C163: 534 | D163: UAM | E163: Computación | F163: Tratamiento de residuos líquidos mediante procesos electroquímicos y biológicos | G163: Sergio Martínez Delgadillo Víctor Xiunel Mendoza Escamilla Dra. Silvia Cristina Iuga | H163: 5318-9007
A164: =COUNTIF($E$1:E164,'Proyectos vigentes'!$C$4) -> 14 | B164: 163 | C164: 534 | D164: UAM | E164: Electrónica | F164: Tratamiento de residuos líquidos mediante procesos electroquímicos y biológicos | G164: Sergio Martínez Delgadillo Víctor Xiunel Mendoza Escamilla Dra. Silvia Cristina Iuga | H164: 5318-9007
A165: =COUNTIF($E$1:E165,'Proyectos vigentes'!$C$4) -> 14 | B165: 164 | C165: 534 | D165: UAM | E165: Física | F165: Tratamiento de residuos líquidos mediante procesos electroquímicos y biológicos | G165: Sergio Martínez Delgadillo Víctor Xiunel Mendoza Escamilla Dra. Silvia Cristina Iuga | H165: 5318-9007
A166: =COUNTIF($E$1:E166,'Proyectos vigentes'!$C$4) -> 14 | B166: 165 | C166: 534 | D166: UAM | E166: Industrial | F166: Tratamiento de residuos líquidos mediante procesos electroquímicos y biológicos | G166: Sergio Martínez Delgadillo Víctor Xiunel Mendoza Escamilla Dra. Silvia Cristina Iuga | H166: 5318-9007
A167: =COUNTIF($E$1:E167,'Proyectos vigentes'!$C$4) -> 15 | B167: 166 | C167: 534 | D167: UAM | E167: Mecánica | F167: Tratamiento de residuos líquidos mediante procesos electroquímicos y biológicos | G167: Sergio Martínez Delgadillo Víctor Xiunel Mendoza Escamilla Dra. Silvia Cristina Iuga | H167: 5318-9007
A168: =COUNTIF($E$1:E168,'Proyectos vigentes'!$C$4) -> 15 | B168: 167 | C168: 534 | D168: UAM | E168: Química | F168: Tratamiento de residuos líquidos mediante procesos electroquímicos y biológicos | G168: Sergio Martínez Delgadillo Víctor Xiunel Mendoza Escamilla Dra. Silvia Cristina Iuga | H168: 5318-9007
A169: =COUNTIF($E$1:E169,'Proyectos vigentes'!$C$4) -> 15 | B169: 168 | C169: 1183 | D169: UAM | E169: Industrial | F169: Técnicas de visualización para el estudio de micromovimientos | G169: Dr. Miguel Ángel López Ontiveros | H169: 5318-9000 ext. 2243
A170: =COUNTIF($E$1:E170,'Proyectos vigentes'!$C$4) -> 16 | B170: 169 | C170: 1183 | D170: UAM | E170: Mecánica | F170: Técnicas de visualización para el estudio de micromovimientos | G170: Dr. Miguel Ángel López Ontiveros | H170: 5318-9000 ext. 2243
A171: =COUNTIF($E$1:E171,'Proyectos vigentes'!$C$4) -> 16 | B171: 170 | C171: 1194 | D171: UAM | E171: Todas las carreras CBI | F171: Límites para la eficiencia energética y las emisiones de gases de efecto invernadero para los vehículos automotores nuevos de México | G171: Nicolás Domínguez Vergara José Luis Pantoja Gallegos Marco Antonio Gutiérrez Villegas Carlos Alberto Rivera Salamanca Juan de la Cruz Mejía Téllez Germán Téllez Castillo | H171: 5318-9531 ext. 120
A172: =COUNTIF($E$1:E172,'Proyectos vigentes'!$C$4) -> 16 | B172: 171 | C172: 1208 | D172: UAM | E172: Todas las carreras CBI | F172: Manejo de arbolado urbano | G172: Alicia Chacalo Hilu Mtro. Jaime Grabinsky y Steider | H172: 5318-9078
A173: =COUNTIF($E$1:E173,'Proyectos vigentes'!$C$4) -> 16 | B173: 172 | C173: 1210 | D173: UAM | E173: Computación | F173: Seguimiento de las actividades académicas de la Coordinación del Posgrado en Optimización | G173: Dr. Eduardo Rodríguez Martínez Dr. Francisco Javier Zaragoza Martínez Dr. Marco Antonio Heredia Velasco Dr. Rodrigo Alexander Castro Campos | H173: 5318-9000 ext. 2268, 2356, 2294
A174: =COUNTIF($E$1:E174,'Proyectos vigentes'!$C$4) -> 16 | B174: 173 | C174: 1210 | D174: UAM | E174: Electrónica | F174: Seguimiento de las actividades académicas de la Coordinación del Posgrado en Optimización | G174: Dr. Eduardo Rodríguez Martínez Dr. Francisco Javier Zaragoza Martínez Dr. Marco Antonio Heredia Velasco Dr. Rodrigo Alexander Castro Campos | H174: 5318-9000 ext. 2268, 2356, 2294
A175: =COUNTIF($E$1:E175,'Proyectos vigentes'!$C$4) -> 16 | B175: 174 | C175: 1210 | D175: UAM | E175: Industrial | F175: Seguimiento de las actividades académicas de la Coordinación del Posgrado en Optimización | G175: Dr. Eduardo Rodríguez Martínez Dr. Francisco Javier Zaragoza Martínez Dr. Marco Antonio Heredia Velasco Dr. Rodrigo Alexander Castro Campos | H175: 5318-9000 ext. 2268, 2356, 2294
A176: =COUNTIF($E$1:E176,'Proyectos vigentes'!$C$4) -> 16 | B176: 175 | C176: 1224 | D176: UAM | E176: Todas las carreras CBI | F176: Desarrollo y conservación de la infraestructura de cómputo del Sistema de Aprendizaje Individualizado | G176: Dr. Ángel Martínez Meléndez | H176: 5318-9010
A177: =COUNTIF($E$1:E177,'Proyectos vigentes'!$C$4) -> 16 | B177: 176 | C177: 1227 | D177: UAM | E177: Todas las carreras CBI | F177: Apoyo para la implementación y mejora del sistema de Gestión de calidad en la Unidad Azcapotzalco | G177: Mtra. Gina Ortíz Hernández Dr. José Ángel Hernández Rodríguez | H177: 5318-9590
A178: =COUNTIF($E$1:E178,'Proyectos vigentes'!$C$4) -> 16 | B178: 177 | C178: 1241 | D178: UAM | E178: Ambiental | F178: Formación académica de estudiantes en temas relacionados con economía y medio ambiente | G178: Dra. Lilia Rodríguez Tapia Dra. Fabiola Sagrario Sosa Rodríguez | H178: 5318-9427
A179: =COUNTIF($E$1:E179,'Proyectos vigentes'!$C$4) -> 16 | B179: 178 | C179: 1241 | D179: UAM | E179: Computación | F179: Formación académica de estudiantes en temas relacionados con economía y medio ambiente | G179: Dra. Lilia Rodríguez Tapia Dra. Fabiola Sagrario Sosa Rodríguez | H179: 5318-9427
A180: =COUNTIF($E$1:E180,'Proyectos vigentes'!$C$4) -> 16 | B180: 179 | C180: 1241 | D180: UAM | E180: Química | F180: Formación académica de estudiantes en temas relacionados con economía y medio ambiente | G180: Dra. Lilia Rodríguez Tapia Dra. Fabiola Sagrario Sosa Rodríguez | H180: 5318-9427
A181: =COUNTIF($E$1:E181,'Proyectos vigentes'!$C$4) -> 16 | B181: 180 | C181: 1263 | D181: UAM | E181: Computación | F181: Apoyo a la Coordinación de la carrera de ingeniería electrónica | G181: Mtro. Gerardo Marcel Reyna Obregón | H181: 55-5318-9000 ext. 2330
A182: =COUNTIF($E$1:E182,'Proyectos vigentes'!$C$4) -> 16 | B182: 181 | C182: 1263 | D182: UAM | E182: Electrónica | F182: Apoyo a la Coordinación de la carrera de ingeniería electrónica | G182: Mtro. Gerardo Marcel Reyna Obregón | H182: 55-5318-9000 ext. 2330
A183: =COUNTIF($E$1:E183,'Proyectos vigentes'!$C$4) -> 16 | B183: 182 | C183: 1271 | D183: UAM | E183: Ambiental | F183: Materiales nanoestructurados | G183: Miguel Torres Rodríguez Mirella Gutiérrez Arzaluz Lidia López Pérez | H183: 5318-9570
A184: =COUNTIF($E$1:E184,'Proyectos vigentes'!$C$4) -> 16 | B184: 183 | C184: 1271 | D184: UAM | E184: Química | F184: Materiales nanoestructurados | G184: Miguel Torres Rodríguez Mirella Gutiérrez Arzaluz Lidia López Pérez | H184: 5318-9570
A185: =COUNTIF($E$1:E185,'Proyectos vigentes'!$C$4) -> 16 | B185: 184 | C185: 1277 | D185: UAM | E185: Química | F185: Síntesis, caracterización y propiedades catalíticas de polioxocompuestos | G185: Dr. Saúl Holguín Quiñones | H185: 5318-9000 ext. 2219, 2055
A186: =COUNTIF($E$1:E186,'Proyectos vigentes'!$C$4) -> 16 | B186: 185 | C186: 1287 | D186: UAM | E186: Ambiental | F186: Diseño de materiales sono o foto-activos (TiO2), usados en la degradación de contaminantes | G186: Marcos May Lozano Ricardo López Medina | H186: 5318-9023
A187: =COUNTIF($E$1:E187,'Proyectos vigentes'!$C$4) -> 17 | B187: 186 | C187: 1287 | D187: UAM | E187: Mecánica | F187: Diseño de materiales sono o foto-activos (TiO2), usados en la degradación de contaminantes | G187: Marcos May Lozano Ricardo López Medina | H187: 5318-9023
A188: =COUNTIF($E$1:E188,'Proyectos vigentes'!$C$4) -> 17 | B188: 187 | C188: 1287 | D188: UAM | E188: Química | F188: Diseño de materiales sono o foto-activos (TiO2), usados en la degradación de contaminantes | G188: Marcos May Lozano Ricardo López Medina | H188: 5318-9023
A189: =COUNTIF($E$1:E189,'Proyectos vigentes'!$C$4) -> 17 | B189: 188 | C189: 1318 | D189: UAM | E189: Computación | F189: Modelando sistemas complejos: Estadística y dinámica | G189: Dr. Hugo Hernández Saldaña | H189: 5318-9575
A190: =COUNTIF($E$1:E190,'Proyectos vigentes'!$C$4) -> 17 | B190: 189 | C190: 1318 | D190: UAM | E190: Electrónica | F190: Modelando sistemas complejos: Estadística y dinámica | G190: Dr. Hugo Hernández Saldaña | H190: 5318-9575
A191: =COUNTIF($E$1:E191,'Proyectos vigentes'!$C$4) -> 17 | B191: 190 | C191: 1318 | D191: UAM | E191: Física | F191: Modelando sistemas complejos: Estadística y dinámica | G191: Dr. Hugo Hernández Saldaña | H191: 5318-9575
A192: =COUNTIF($E$1:E192,'Proyectos vigentes'!$C$4) -> 17 | B192: 191 | C192: 1327 | D192: UAM | E192: Ambiental | F192: Preparación de materiales porosos para su evaluación y modelado cinético como adsorbentes y catalizadores | G192: Dr. Enrique Aduna Espinosa Dr. Jorge Luis Flores Moreno Mtra. Alejandra Santana Cruz Dr. Hiram Isaac Beltrán Conde | H192: 5318-9571, 5318-9000 ext. 2233
A193: =COUNTIF($E$1:E193,'Proyectos vigentes'!$C$4) -> 17 | B193: 192 | C193: 1327 | D193: UAM | E193: Química | F193: Preparación de materiales porosos para su evaluación y modelado cinético como adsorbentes y catalizadores | G193: Dr. Enrique Aduna Espinosa Dr. Jorge Luis Flores Moreno Mtra. Alejandra Santana Cruz Dr. Hiram Isaac Beltrán Conde | H193: 5318-9571, 5318-9000 ext. 2233
A194: =COUNTIF($E$1:E194,'Proyectos vigentes'!$C$4) -> 17 | B194: 193 | C194: 1355 | D194: UAM | E194: Computación | F194: Apoyo a la Coordinación Divisional de Vinculación de CBI | G194: María Antonieta Ortega Rodríguez Amando José Padilla Ramírez | H194: 5318-9006, ext. 2089, 2204
A195: =COUNTIF($E$1:E195,'Proyectos vigentes'!$C$4) -> 17 | B195: 194 | C195: 1361 | D195: UAM | E195: Ambiental | F195: Análisis, desarrollo, innovación, implementación y mejora de programas ambientales y sustentables de la UAM-A | G195: Luis Antonio Barbosa Noegerat Rosa María Espinosa Valdemar | H195: 5318-945
A196: =COUNTIF($E$1:E196,'Proyectos vigentes'!$C$4) -> 17 | B196: 195 | C196: 1361 | D196: UAM | E196: Civil | F196: Análisis, desarrollo, innovación, implementación y mejora de programas ambientales y sustentables de la UAM-A | G196: Luis Antonio Barbosa Noegerat Rosa María Espinosa Valdemar | H196: 5318-945
A197: =COUNTIF($E$1:E197,'Proyectos vigentes'!$C$4) -> 17 | B197: 196 | C197: 1361 | D197: UAM | E197: Eléctrica | F197: Análisis, desarrollo, innovación, implementación y mejora de programas ambientales y sustentables de la UAM-A | G197: Luis Antonio Barbosa Noegerat Rosa María Espinosa Valdemar | H197: 5318-945
A198: =COUNTIF($E$1:E198,'Proyectos vigentes'!$C$4) -> 17 | B198: 197 | C198: 1361 | D198: UAM | E198: Electrónica | F198: Análisis, desarrollo, innovación, implementación y mejora de programas ambientales y sustentables de la UAM-A | G198: Luis Antonio Barbosa Noegerat | H198: 5318-945
A199: =COUNTIF($E$1:E199,'Proyectos vigentes'!$C$4) -> 17 | B199: 198 | C199: 1361 | D199: UAM | E199: Industrial | F199: Análisis, desarrollo, innovación, implementación y mejora de programas ambientales y sustentables de la UAM-A | G199: Luis Antonio Barbosa Noegerat Rosa María Espinosa Valdemar | H199: 5318-945
A200: =COUNTIF($E$1:E200,'Proyectos vigentes'!$C$4) -> 17 | B200: 199 | C200: 1366 | D200: UAM | E200: Ambiental | F200: Apoyo para la obtención de datos experimentales de un sistema de adsorción de compuestos azufrados. | G200: José Antonio Colín Luna Julio César García Martínez | H200: 5318-9044 y 5318-9020
... 350 more rows

Sheet Proyectos vigentes
A2: PROYECTOS DE SERVICIO SOCIAL VIGENTES
F3: Última Actualización: 15 de abril de 2024
A4: Ingeniería | C4: Mecánica
A7: No. | B7: NUM. REG. | C7: DEPENDENCIA | D7: CARRERA | E7: NOMBRE DEL PROYECTO | F7: ASESOR (ES) | G7: TELEFONO
A8: 1 | B8: =VLOOKUP(A8,Hoja1!$A$1:$H$578,3,FALSE) -> 60 | C8: =IFERROR(VLOOKUP(A8,Hoja1!$A$1:$H$578,4,FALSE)," ") -> Instituto Mexicano del Petróleo | D8: =IFERROR(VLOOKUP(A8,Hoja1!$A$1:$H$578,5,FALSE)," ") -> Mecánica | E8: =IFERROR(VLOOKUP(A8,Hoja1!$A$1:$H$578,6,FALSE)," ") -> Formación y desarrollo del factor humano del IMP | F8: =IFERROR(VLOOKUP(A8,Hoja1!$A$1:$H$578,7,FALSE)," ") -> M. en C. María Guadalupe Alvarado Maldonado | G8: =IFERROR(VLOOKUP(A8,Hoja1!$A$1:$H$578,8,FALSE)," ") -> 9175-6373
A9: 2 | B9: =VLOOKUP(A9,Hoja1!$A$1:$H$578,3,FALSE) -> 361 | C9: =IFERROR(VLOOKUP(A9,Hoja1!$A$1:$H$578,4,FALSE)," ") -> Sistema de Transporte Colectivo (Metro) | D9: =IFERROR(VLOOKUP(A9,Hoja1!$A$1:$H$578,5,FALSE)," ") -> Mecánica | E9: =IFERROR(VLOOKUP(A9,Hoja1!$A$1:$H$578,6,FALSE)," ") -> Mantenimiento preventivo y correctivo a las instalaciones que conforman la operatividad del S. T. C. | F9: =IFERROR(VLOOKUP(A9,Hoja1!$A$1:$H$578,7,FALSE)," ") -> Lic. Carlos Enrique Gómez Alonso | G9: =IFERROR(VLOOKUP(A9,Hoja1!$A$1:$H$578,8,FALSE)," ") -> 5709-1133 ext. 2546, 2547
A10: 3 | B10: =VLOOKUP(A10,Hoja1!$A$1:$H$578,3,FALSE) -> 829-396 | C10: =IFERROR(VLOOKUP(A10,Hoja1!$A$1:$H$578,4,FALSE)," ") -> Petróleos Mexicanos | D10: =IFERROR(VLOOKUP(A10,Hoja1!$A$1:$H$578,5,FALSE)," ") -> Mecánica | E10: =IFERROR(VLOOKUP(A10,Hoja1!$A$1:$H$578,6,FALSE)," ") -> PROSER Capital Humano | F10: =IFERROR(VLOOKUP(A10,Hoja1!$A$1:$H$578,7,FALSE)," ") -> Ing. María Esther Torruco Ruiz | G10: =IFERROR(VLOOKUP(A10,Hoja1!$A$1:$H$578,8,FALSE)," ") -> 1944-2500 ext. 37771
A11: 4 | B11: =VLOOKUP(A11,Hoja1!$A$1:$H$578,3,FALSE) -> 830-065 | C11: =IFERROR(VLOOKUP(A11,Hoja1!$A$1:$H$578,4,FALSE)," ") -> Instituto Mexicano de la Construcción en Acero (IMCA) | D11: =IFERROR(VLOOKUP(A11,Hoja1!$A$1:$H$578,5,FALSE)," ") -> Mecánica | E11: =IFERROR(VLOOKUP(A11,Hoja1!$A$1:$H$578,6,FALSE)," ") -> Diseño, fabricación, montaje y supervisión de estructuras de acero | F11: =IFERROR(VLOOKUP(A11,Hoja1!$A$1:$H$578,7,FALSE)," ") -> Ing. Octavio Álvarez Valadez Dr. Tiziano Perea Olvera. | G11: =IFERROR(VLOOKUP(A11,Hoja1!$A$1:$H$578,8,FALSE)," ") -> 55-5572-3196
A12: 5 | B12: =VLOOKUP(A12,Hoja1!$A$1:$H$578,3,FALSE) -> 829-435 | C12: =IFERROR(VLOOKUP(A12,Hoja1!$A$1:$H$578,4,FALSE)," ") -> Secretaría de Seguridad Ciudadana de la Ciudad de México (SSC CDMX) | D12: =IFERROR(VLOOKUP(A12,Hoja1!$A$1:$H$578,5,FALSE)," ") -> Mecánica | E12: =IFERROR(VLOOKUP(A12,Hoja1!$A$1:$H$578,6,FALSE)," ") -> Apoyo en actividades de infraestructura y de tecnología de la SSC CDMX | F12: =IFERROR(VLOOKUP(A12,Hoja1!$A$1:$H$578,7,FALSE)," ") -> Lic. Juan de Dios Maciel Pérez Lic. Luis Javier Ramírez Reyes. | G12: =IFERROR(VLOOKUP(A12,Hoja1!$A$1:$H$578,8,FALSE)," ") -> 55-5132-5400 ext. 1314
A13: 6 | B13: =VLOOKUP(A13,Hoja1!$A$1:$H$578,3,FALSE) -> 829-443 | C13: =IFERROR(VLOOKUP(A13,Hoja1!$A$1:$H$578,4,FALSE)," ") -> Financiera para el Bienestar | D13: =IFERROR(VLOOKUP(A13,Hoja1!$A$1:$H$578,5,FALSE)," ") -> Mecánica | E13: =IFERROR(VLOOKUP(A13,Hoja1!$A$1:$H$578,6,FALSE)," ") -> Apoyo Administrativo en Telecomm | F13: =IFERROR(VLOOKUP(A13,Hoja1!$A$1:$H$578,7,FALSE)," ") -> Lic. Karla Beatriz Dávila García, Mtro. Carlos Fernando Roldán Zarate | G13: =IFERROR(VLOOKUP(A13,Hoja1!$A$1:$H$578,8,FALSE)," ") -> 5550901100 ext.1202
A14: 7 | B14: =VLOOKUP(A14,Hoja1!$A$1:$H$578,3,FALSE) -> 829-447 | C14: =IFERROR(VLOOKUP(A14,Hoja1!$A$1:$H$578,4,FALSE)," ") -> Red de Transporte de pasajeros de la Ciudad de México | D14: =IFERROR(VLOOKUP(A14,Hoja1!$A$1:$H$578,5,FALSE)," ") -> Mecánica | E14: =IFERROR(VLOOKUP(A14,Hoja1!$A$1:$H$578,6,FALSE)," ") -> Servicio Social para la administración Integral de la Red de Transporte de pasajeros de la Ciudad de México | F14: =IFERROR(VLOOKUP(A14,Hoja1!$A$1:$H$578,7,FALSE)," ") -> C. P. Tania Edith Reyes Varela Lic. Lucia Paola Carrillo Olvera Lic. Valeria Jacqueline Ávila Arias Lic. Elliots Luis Miranda León | G14: =IFERROR(VLOOKUP(A14,Hoja1!$A$1:$H$578,8,FALSE)," ") -> 55-1328-6300 ext. 6423, 6387
A15: 8 | B15: =VLOOKUP(A15,Hoja1!$A$1:$H$578,3,FALSE) -> 964 | C15: =IFERROR(VLOOKUP(A15,Hoja1!$A$1:$H$578,4,FALSE)," ") -> UAM | D15: =IFERROR(VLOOKUP(A15,Hoja1!$A$1:$H$578,5,FALSE)," ") -> Mecánica | E15: =IFERROR(VLOOKUP(A15,Hoja1!$A$1:$H$578,6,FALSE)," ") -> Simulación y análisis experimental en energía solar. | F15: =IFERROR(VLOOKUP(A15,Hoja1!$A$1:$H$578,7,FALSE)," ") -> Hilario Terres Peña | G15: =IFERROR(VLOOKUP(A15,Hoja1!$A$1:$H$578,8,FALSE)," ") -> 5318-9061
A16: 9 | B16: =VLOOKUP(A16,Hoja1!$A$1:$H$578,3,FALSE) -> 991 | C16: =IFERROR(VLOOKUP(A16,Hoja1!$A$1:$H$578,4,FALSE)," ") -> UAM | D16: =IFERROR(VLOOKUP(A16,Hoja1!$A$1:$H$578,5,FALSE)," ") -> Mecánica | E16: =IFERROR(VLOOKUP(A16,Hoja1!$A$1:$H$578,6,FALSE)," ") -> Operación de la planta piloto de tratamiento de aguas residuales de la UAM-A. | F16: =IFERROR(VLOOKUP(A16,Hoja1!$A$1:$H$578,7,FALSE)," ") -> Dr. Israel Labastida Núñez M. en C. I. Margarita Beltrán Villavicencio Dra. Maribel Velasco Pérez Dr. Jaime Alejandro Paulino Granados Samaniego | G16: =IFERROR(VLOOKUP(A16,Hoja1!$A$1:$H$578,8,FALSE)," ") -> 55-5318-9075
A17: 10 | B17: =VLOOKUP(A17,Hoja1!$A$1:$H$578,3,FALSE) -> 816 | C17: =IFERROR(VLOOKUP(A17,Hoja1!$A$1:$H$578,4,FALSE)," ") -> UAM | D17: =IFERROR(VLOOKUP(A17,Hoja1!$A$1:$H$578,5,FALSE)," ") -> Mecánica | E17: =IFERROR(VLOOKUP(A17,Hoja1!$A$1:$H$578,6,FALSE)," ") -> Apoyo al Programa Interno de Protección Civil de la UAM-Azcapotzalco. | F17: =IFERROR(VLOOKUP(A17,Hoja1!$A$1:$H$578,7,FALSE)," ") -> Ing. Roberto Carlos Vázquez Solís Dra. Rosa María Espinosa Valdemar | G17: =IFERROR(VLOOKUP(A17,Hoja1!$A$1:$H$578,8,FALSE)," ") -> 555318-9545
A18: 11 | B18: =VLOOKUP(A18,Hoja1!$A$1:$H$578,3,FALSE) -> 1076 | C18: =IFERROR(VLOOKUP(A18,Hoja1!$A$1:$H$578,4,FALSE)," ") -> UAM | D18: =IFERROR(VLOOKUP(A18,Hoja1!$A$1:$H$578,5,FALSE)," ") -> Mecánica | E18: =IFERROR(VLOOKUP(A18,Hoja1!$A$1:$H$578,6,FALSE)," ") -> P.G.I.R.S. de la UAM-Azcapotzalco SEPARACCIÓN | F18: =IFERROR(VLOOKUP(A18,Hoja1!$A$1:$H$578,7,FALSE)," ") -> Dra. Rosa María Espinosa Valdemar | G18: =IFERROR(VLOOKUP(A18,Hoja1!$A$1:$H$578,8,FALSE)," ") -> 5318-9062
A19: 12 | B19: =VLOOKUP(A19,Hoja1!$A$1:$H$578,3,FALSE) -> 1107 | C19: =IFERROR(VLOOKUP(A19,Hoja1!$A$1:$H$578,4,FALSE)," ") -> UAM | D19: =IFERROR(VLOOKUP(A19,Hoja1!$A$1:$H$578,5,FALSE)," ") -> Mecánica | E19: =IFERROR(VLOOKUP(A19,Hoja1!$A$1:$H$578,6,FALSE)," ") -> Muestreo y análisis de compuestos tóxicos en el ambiente | F19: =IFERROR(VLOOKUP(A19,Hoja1!$A$1:$H$578,7,FALSE)," ") -> Dra. Violeta Mugica Álvarez Dra. Brenda Liz Valle Hernández Mtra. Griselda González Cardoso Dr. José de Jesús Figueroa Lara Dr. Adolfo Hernández Moreno | G19: =IFERROR(VLOOKUP(A19,Hoja1!$A$1:$H$578,8,FALSE)," ") -> 5553189570
A20: 13 | B20: =VLOOKUP(A20,Hoja1!$A$1:$H$578,3,FALSE) -> 1143 | C20: =IFERROR(VLOOKUP(A20,Hoja1!$A$1:$H$578,4,FALSE)," ") -> UAM | D20: =IFERROR(VLOOKUP(A20,Hoja1!$A$1:$H$578,5,FALSE)," ") -> Mecánica | E20: =IFERROR(VLOOKUP(A20,Hoja1!$A$1:$H$578,6,FALSE)," ") -> Diseño de prototipos experimentales para sistemas complejos | F20: =IFERROR(VLOOKUP(A20,Hoja1!$A$1:$H$578,7,FALSE)," ") -> Eduardo Basurto Uribe Catalina Ester Haro Pérez Armando Gómez Vieyra Grethell Georgina Pérez Sánchez Carlos Alejandro Vargas Gerardo Miguel Odriozola Prego | G20: =IFERROR(VLOOKUP(A20,Hoja1!$A$1:$H$578,8,FALSE)," ") -> 5318-9382 5318-9020
A21: 14 | B21: =VLOOKUP(A21,Hoja1!$A$1:$H$578,3,FALSE) -> 1146 | C21: =IFERROR(VLOOKUP(A21,Hoja1!$A$1:$H$578,4,FALSE)," ") -> UAM | D21: =IFERROR(VLOOKUP(A21,Hoja1!$A$1:$H$578,5,FALSE)," ") -> Mecánica | E21: =IFERROR(VLOOKUP(A21,Hoja1!$A$1:$H$578,6,FALSE)," ") -> Centro de apoyo para docencia e investigación (CADI) | F21: =IFERROR(VLOOKUP(A21,Hoja1!$A$1:$H$578,7,FALSE)," ") -> Dr. Ernesto Rodrigo Vázquez Cerón | G21: =IFERROR(VLOOKUP(A21,Hoja1!$A$1:$H$578,8,FALSE)," ") -> 5318-9030
A22: 15 | B22: =VLOOKUP(A22,Hoja1!$A$1:$H$578,3,FALSE) -> 534 | C22: =IFERROR(VLOOKUP(A22,Hoja1!$A$1:$H$578,4,FALSE)," ") -> UAM | D22: =IFERROR(VLOOKUP(A22,Hoja1!$A$1:$H$578,5,FALSE)," ") -> Mecánica | E22: =IFERROR(VLOOKUP(A22,Hoja1!$A$1:$H$578,6,FALSE)," ") -> Tratamiento de residuos líquidos mediante procesos electroquímicos y biológicos | F22: =IFERROR(VLOOKUP(A22,Hoja1!$A$1:$H$578,7,FALSE)," ") -> Sergio Martínez Delgadillo Víctor Xiunel Mendoza Escamilla Dra. Silvia Cristina Iuga | G22: =IFERROR(VLOOKUP(A22,Hoja1!$A$1:$H$578,8,FALSE)," ") -> 5318-9007
A23: 16 | B23: =VLOOKUP(A23,Hoja1!$A$1:$H$578,3,FALSE) -> 1183 | C23: =IFERROR(VLOOKUP(A23,Hoja1!$A$1:$H$578,4,FALSE)," ") -> UAM | D23: =IFERROR(VLOOKUP(A23,Hoja1!$A$1:$H$578,5,FALSE)," ") -> Mecánica | E23: =IFERROR(VLOOKUP(A23,Hoja1!$A$1:$H$578,6,FALSE)," ") -> Técnicas de visualización para el estudio de micromovimientos | F23: =IFERROR(VLOOKUP(A23,Hoja1!$A$1:$H$578,7,FALSE)," ") -> Dr. Miguel Ángel López Ontiveros | G23: =IFERROR(VLOOKUP(A23,Hoja1!$A$1:$H$578,8,FALSE)," ") -> 5318-9000 ext. 2243
A24: 17 | B24: =VLOOKUP(A24,Hoja1!$A$1:$H$578,3,FALSE) -> 1287 | C24: =IFERROR(VLOOKUP(A24,Hoja1!$A$1:$H$578,4,FALSE)," ") -> UAM | D24: =IFERROR(VLOOKUP(A24,Hoja1!$A$1:$H$578,5,FALSE)," ") -> Mecánica | E24: =IFERROR(VLOOKUP(A24,Hoja1!$A$1:$H$578,6,FALSE)," ") -> Diseño de materiales sono o foto-activos (TiO2), usados en la degradación de contaminantes | F24: =IFERROR(VLOOKUP(A24,Hoja1!$A$1:$H$578,7,FALSE)," ") -> Marcos May Lozano Ricardo López Medina | G24: =IFERROR(VLOOKUP(A24,Hoja1!$A$1:$H$578,8,FALSE)," ") -> 5318-9023
A25: 18 | B25: =VLOOKUP(A25,Hoja1!$A$1:$H$578,3,FALSE) -> 1388 | C25: =IFERROR(VLOOKUP(A25,Hoja1!$A$1:$H$578,4,FALSE)," ") -> UAM | D25: =IFERROR(VLOOKUP(A25,Hoja1!$A$1:$H$578,5,FALSE)," ") -> Mecánica | E25: =IFERROR(VLOOKUP(A25,Hoja1!$A$1:$H$578,6,FALSE)," ") -> Análisis numérico y experimental en el proceso de destilación solar | F25: =IFERROR(VLOOKUP(A25,Hoja1!$A$1:$H$578,7,FALSE)," ") -> Mtra. Sandra Chávez Sánchez | G25: =IFERROR(VLOOKUP(A25,Hoja1!$A$1:$H$578,8,FALSE)," ") -> 5318-9000
A26: 19 | B26: =VLOOKUP(A26,Hoja1!$A$1:$H$578,3,FALSE) -> 1395 | C26: =IFERROR(VLOOKUP(A26,Hoja1!$A$1:$H$578,4,FALSE)," ") -> UAM | D26: =IFERROR(VLOOKUP(A26,Hoja1!$A$1:$H$578,5,FALSE)," ") -> Mecánica | E26: =IFERROR(VLOOKUP(A26,Hoja1!$A$1:$H$578,6,FALSE)," ") -> Tecnologías sustentables enfocadas a agua, suelo y plásticos | F26: =IFERROR(VLOOKUP(A26,Hoja1!$A$1:$H$578,7,FALSE)," ") -> Mtra. Margarita Beltrán Villavicencio Dra. Alethia Vázquez Morillas Dra. Maribel Velasco Pérez Dra. Rosa María Espinosa Valdemar Dr. Israel Labastida Núñez Dra. Sylvie Turpin Marion Mtra. Griselda González Cardoso Dr. José Ángel Dávila Gómez | G26: =IFERROR(VLOOKUP(A26,Hoja1!$A$1:$H$578,8,FALSE)," ") -> 5318-9075, 5318-9057, 53189062
A27: 20 | B27: =VLOOKUP(A27,Hoja1!$A$1:$H$578,3,FALSE) -> 1435 | C27: =IFERROR(VLOOKUP(A27,Hoja1!$A$1:$H$578,4,FALSE)," ") -> UAM | D27: =IFERROR(VLOOKUP(A27,Hoja1!$A$1:$H$578,5,FALSE)," ") -> Mecánica | E27: =IFERROR(VLOOKUP(A27,Hoja1!$A$1:$H$578,6,FALSE)," ") -> Desarrollo y construcción de un vehículo baja SAE | F27: =IFERROR(VLOOKUP(A27,Hoja1!$A$1:$H$578,7,FALSE)," ") -> Ing. Romy Pérez Moreno | G27: =IFERROR(VLOOKUP(A27,Hoja1!$A$1:$H$578,8,FALSE)," ") -> 5318-9069
A28: 21 | B28: =VLOOKUP(A28,Hoja1!$A$1:$H$578,3,FALSE) -> 1477 | C28: =IFERROR(VLOOKUP(A28,Hoja1!$A$1:$H$578,4,FALSE)," ") -> UAM | D28: =IFERROR(VLOOKUP(A28,Hoja1!$A$1:$H$578,5,FALSE)," ") -> Mecánica | E28: =IFERROR(VLOOKUP(A28,Hoja1!$A$1:$H$578,6,FALSE)," ") -> Desarrollo de una célula de manufactura con enfoque 4.0 | F28: =IFERROR(VLOOKUP(A28,Hoja1!$A$1:$H$578,7,FALSE)," ") -> Lisaura Walkiria Rodríguez Alvarado Jesús Loyo Quijada Dr. Usiel Sandino Silva Rivera | G28: =IFERROR(VLOOKUP(A28,Hoja1!$A$1:$H$578,8,FALSE)," ") -> 5318-9532 ext. 146, 112
A29: 22 | B29: =VLOOKUP(A29,Hoja1!$A$1:$H$578,3,FALSE) -> 1492 | C29: =IFERROR(VLOOKUP(A29,Hoja1!$A$1:$H$578,4,FALSE)," ") -> UAM | D29: =IFERROR(VLOOKUP(A29,Hoja1!$A$1:$H$578,5,FALSE)," ") -> Mecánica | E29: =IFERROR(VLOOKUP(A29,Hoja1!$A$1:$H$578,6,FALSE)," ") -> Fabricación y caracterización de nuevos materiales compuestos para posibles implantes en el cuerpo humano (huesos) | F29: =IFERROR(VLOOKUP(A29,Hoja1!$A$1:$H$578,7,FALSE)," ") -> Dra. María Elizabeth Refugio García | G29: =IFERROR(VLOOKUP(A29,Hoja1!$A$1:$H$578,8,FALSE)," ") -> 5318-9000 ext. 2130
A30: 23 | B30: =VLOOKUP(A30,Hoja1!$A$1:$H$578,3,FALSE) -> 1497 | C30: =IFERROR(VLOOKUP(A30,Hoja1!$A$1:$H$578,4,FALSE)," ") -> UAM | D30: =IFERROR(VLOOKUP(A30,Hoja1!$A$1:$H$578,5,FALSE)," ") -> Mecánica | E30: =IFERROR(VLOOKUP(A30,Hoja1!$A$1:$H$578,6,FALSE)," ") -> Comportamiento de estructuras de concreto | F30: =IFERROR(VLOOKUP(A30,Hoja1!$A$1:$H$578,7,FALSE)," ") -> Dr. Eduardo Arellano Mendez Dr. Hans Israel Archundia Aranda M. I. Gilberto Rangel Torres | G30: =IFERROR(VLOOKUP(A30,Hoja1!$A$1:$H$578,8,FALSE)," ") -> 53189461
A31: 24 | B31: =VLOOKUP(A31,Hoja1!$A$1:$H$578,3,FALSE) -> 1518 | C31: =IFERROR(VLOOKUP(A31,Hoja1!$A$1:$H$578,4,FALSE)," ") -> UAM | D31: =IFERROR(VLOOKUP(A31,Hoja1!$A$1:$H$578,5,FALSE)," ") -> Mecánica | E31: =IFERROR(VLOOKUP(A31,Hoja1!$A$1:$H$578,6,FALSE)," ") -> Proyecto interdisciplinario para la sostenibilidad del Valle de México y sus alrededores | F31: =IFERROR(VLOOKUP(A31,Hoja1!$A$1:$H$578,7,FALSE)," ") -> Mtro. Erasmo Flores Valverde Mtra. María Rita Valladares Rodríguez | G31: =IFERROR(VLOOKUP(A31,Hoja1!$A$1:$H$578,8,FALSE)," ") -> 5318-9496
A32: 25 | B32: =VLOOKUP(A32,Hoja1!$A$1:$H$578,3,FALSE) -> 1520 | C32: =IFERROR(VLOOKUP(A32,Hoja1!$A$1:$H$578,4,FALSE)," ") -> UAM | D32: =IFERROR(VLOOKUP(A32,Hoja1!$A$1:$H$578,5,FALSE)," ") -> Mecánica | E32: =IFERROR(VLOOKUP(A32,Hoja1!$A$1:$H$578,6,FALSE)," ") -> Desarrollo y caracterización de aleaciones no ferrosas, cerámicos y materiales compuestos de matriz metálica ligeros | F32: =IFERROR(VLOOKUP(A32,Hoja1!$A$1:$H$578,7,FALSE)," ") -> José Arturo Aragón Lezama | G32: =IFERROR(VLOOKUP(A32,Hoja1!$A$1:$H$578,8,FALSE)," ") -> 5318-9475
A33: 26 | B33: =VLOOKUP(A33,Hoja1!$A$1:$H$578,3,FALSE) -> 1523 | C33: =IFERROR(VLOOKUP(A33,Hoja1!$A$1:$H$578,4,FALSE)," ") -> UAM | D33: =IFERROR(VLOOKUP(A33,Hoja1!$A$1:$H$578,5,FALSE)," ") -> Mecánica | E33: =IFERROR(VLOOKUP(A33,Hoja1!$A$1:$H$578,6,FALSE)," ") -> Tecnologías LoRa, Bluetooth LE e IOT | F33: =IFERROR(VLOOKUP(A33,Hoja1!$A$1:$H$578,7,FALSE)," ") -> Mtro. Francisco Javier Sánchez Rangel Mtro. José Ignacio Vega Luna Ing. Gerardo Salgado Guzmán Ing. Mario Alberto Lagos Acosta Ing. Víctor Noé Tapia Vargas | G33: =IFERROR(VLOOKUP(A33,Hoja1!$A$1:$H$578,8,FALSE)," ") -> 5318-9000 ext. 2310
A34: 27 | B34: =VLOOKUP(A34,Hoja1!$A$1:$H$578,3,FALSE) -> 1538 | C34: =IFERROR(VLOOKUP(A34,Hoja1!$A$1:$H$578,4,FALSE)," ") -> UAM | D34: =IFERROR(VLOOKUP(A34,Hoja1!$A$1:$H$578,5,FALSE)," ") -> Mecánica | E34: =IFERROR(VLOOKUP(A34,Hoja1!$A$1:$H$578,6,FALSE)," ") -> Secuencias didácticas para la producción educativa digital en licenciaturas de ingeniería | F34: =IFERROR(VLOOKUP(A34,Hoja1!$A$1:$H$578,7,FALSE)," ") -> M. en C. Hugo Pablo Leyva Dra. Rafaela Blanca Silva López | G34: =IFERROR(VLOOKUP(A34,Hoja1!$A$1:$H$578,8,FALSE)," ") -> 5318-9532 ext. 143
A35: 28 | B35: =VLOOKUP(A35,Hoja1!$A$1:$H$578,3,FALSE) -> 1542 | C35: =IFERROR(VLOOKUP(A35,Hoja1!$A$1:$H$578,4,FALSE)," ") -> UAM | D35: =IFERROR(VLOOKUP(A35,Hoja1!$A$1:$H$578,5,FALSE)," ") -> Mecánica | E35: =IFERROR(VLOOKUP(A35,Hoja1!$A$1:$H$578,6,FALSE)," ") -> Desarrollo de modelos de simulación y prototipos experimentales para telecomunicaciones | F35: =IFERROR(VLOOKUP(A35,Hoja1!$A$1:$H$578,7,FALSE)," ") -> Dr. Genaro Hernández Valdez Dra. Grethell Georgina Pérez Sánchez Dra. Sandra Lirio Castellanos López Dr. Ernesto Rodrigo Vázquez Cerón Ing. Gloria Francisca Serrano Moya M. en C. Mario Alberto Ramírez Reyna | G35: =IFERROR(VLOOKUP(A35,Hoja1!$A$1:$H$578,8,FALSE)," ") -> 5318-9000 ext. 2396, 2298
A36: 29 | B36: =VLOOKUP(A36,Hoja1!$A$1:$H$578,3,FALSE) -> 1573 | C36: =IFERROR(VLOOKUP(A36,Hoja1!$A$1:$H$578,4,FALSE)," ") -> UAM | D36: =IFERROR(VLOOKUP(A36,Hoja1!$A$1:$H$578,5,FALSE)," ") -> Mecánica | E36: =IFERROR(VLOOKUP(A36,Hoja1!$A$1:$H$578,6,FALSE)," ") -> Diseño y construcción de prototipos que apoyen la docencia de las UEA relacionadas con Automatización Industrial. | F36: =IFERROR(VLOOKUP(A36,Hoja1!$A$1:$H$578,7,FALSE)," ") -> Dr. Miguel Magos Rivera Ing. José Antonio Lara Chávez Ing. Ricardo Godínez Bravo. | G36: =IFERROR(VLOOKUP(A36,Hoja1!$A$1:$H$578,8,FALSE)," ") -> 55- 5318 9000 ext. 1028, 2192, 9550
A37: 30 | B37: =VLOOKUP(A37,Hoja1!$A$1:$H$578,3,FALSE) -> 1579 | C37: =IFERROR(VLOOKUP(A37,Hoja1!$A$1:$H$578,4,FALSE)," ") -> UAM | D37: =IFERROR(VLOOKUP(A37,Hoja1!$A$1:$H$578,5,FALSE)," ") -> Mecánica | E37: =IFERROR(VLOOKUP(A37,Hoja1!$A$1:$H$578,6,FALSE)," ") -> Apoyo al Departamento de Energía | F37: =IFERROR(VLOOKUP(A37,Hoja1!$A$1:$H$578,7,FALSE)," ") -> M. en IQ. Carlos Rogelio Tapia Medina | G37: =IFERROR(VLOOKUP(A37,Hoja1!$A$1:$H$578,8,FALSE)," ") -> 55-5318-9047 ext. 101
A38: 31 | B38: =VLOOKUP(A38,Hoja1!$A$1:$H$578,3,FALSE) -> 1580 | C38: =IFERROR(VLOOKUP(A38,Hoja1!$A$1:$H$578,4,FALSE)," ") -> UAM | D38: =IFERROR(VLOOKUP(A38,Hoja1!$A$1:$H$578,5,FALSE)," ") -> Mecánica | E38: =IFERROR(VLOOKUP(A38,Hoja1!$A$1:$H$578,6,FALSE)," ") -> Desarrollo y mantenimiento de los Laboratorios de Cómputo y de Hidroneumática y del brazo cartesiano | F38: =IFERROR(VLOOKUP(A38,Hoja1!$A$1:$H$578,7,FALSE)," ") -> M. en C. Gerardo Aragón González M. en C. Alejandro León Galicia. | G38: =IFERROR(VLOOKUP(A38,Hoja1!$A$1:$H$578,8,FALSE)," ") -> 55-5318-9056
A39: 32 | B39: =VLOOKUP(A39,Hoja1!$A$1:$H$578,3,FALSE) -> 1591 | C39: =IFERROR(VLOOKUP(A39,Hoja1!$A$1:$H$578,4,FALSE)," ") -> UAM | D39: =IFERROR(VLOOKUP(A39,Hoja1!$A$1:$H$578,5,FALSE)," ") -> Mecánica | E39: =IFERROR(VLOOKUP(A39,Hoja1!$A$1:$H$578,6,FALSE)," ") -> Construcción de Infraestructura Experimental en Óptica y Optoelectrónica | F39: =IFERROR(VLOOKUP(A39,Hoja1!$A$1:$H$578,7,FALSE)," ") -> Dra. Grethell Georgina Pérez Sánchez, Dr. Armando Gómez Vieyra | G39: =IFERROR(VLOOKUP(A39,Hoja1!$A$1:$H$578,8,FALSE)," ") -> 55-5318-9000
A40: 33 | B40: =VLOOKUP(A40,Hoja1!$A$1:$H$578,3,FALSE) -> 1594 | C40: =IFERROR(VLOOKUP(A40,Hoja1!$A$1:$H$578,4,FALSE)," ") -> UAM | D40: =IFERROR(VLOOKUP(A40,Hoja1!$A$1:$H$578,5,FALSE)," ") -> Mecánica | E40: =IFERROR(VLOOKUP(A40,Hoja1!$A$1:$H$578,6,FALSE)," ") -> Estudio de la dinámica no lineal. Aplicaciones experimentales, analíticas y numéricas | F40: =IFERROR(VLOOKUP(A40,Hoja1!$A$1:$H$578,7,FALSE)," ") -> Fís. Luisa Gabriela del Valle Díaz Muñoz, Dra. María Guadalupe Hernández Morales, Dr. Inti Pineda Calderón, Ing. Fís. Damián Muciño Cruz, M. en C. José Luis Jiménez Ramírez, M. en C. René Molnar de la Parra. Dr. Alberto Rubio Ponce | G40: =IFERROR(VLOOKUP(A40,Hoja1!$A$1:$H$578,8,FALSE)," ") -> 55-5318-9000 ext. 9018
A41: 34 | B41: =VLOOKUP(A41,Hoja1!$A$1:$H$578,3,FALSE) -> 1596 | C41: =IFERROR(VLOOKUP(A41,Hoja1!$A$1:$H$578,4,FALSE)," ") -> UAM | D41: =IFERROR(VLOOKUP(A41,Hoja1!$A$1:$H$578,5,FALSE)," ") -> Mecánica | E41: =IFERROR(VLOOKUP(A41,Hoja1!$A$1:$H$578,6,FALSE)," ") -> Crear y dar mantenimiento a la página WEB para el Grupo de Investigación “Sistemas Mecánicos de Frontera” | F41: =IFERROR(VLOOKUP(A41,Hoja1!$A$1:$H$578,7,FALSE)," ") -> M. en C. Gilberto Domingo Álvarez Miranda, Dr. Francisco Beltrán Carbajal, Ing. Romy Pérez Moreno, Dr. Zeferino Damián Noriega, Dr. Israel Barragán. Santiago y M. en C. Iván González Uribe. | G41: =IFERROR(VLOOKUP(A41,Hoja1!$A$1:$H$578,8,FALSE)," ") -> 55-5318-9000 ext. 9066, 9069
A42: 35 | B42: =VLOOKUP(A42,Hoja1!$A$1:$H$578,3,FALSE) -> 1600 | C42: =IFERROR(VLOOKUP(A42,Hoja1!$A$1:$H$578,4,FALSE)," ") -> UAM | D42: =IFERROR(VLOOKUP(A42,Hoja1!$A$1:$H$578,5,FALSE)," ") -> Mecánica | E42: =IFERROR(VLOOKUP(A42,Hoja1!$A$1:$H$578,6,FALSE)," ") -> Evaluación del efecto de una fisura en el comportamiento elástico de un rotor | F42: =IFERROR(VLOOKUP(A42,Hoja1!$A$1:$H$578,7,FALSE)," ") -> Dr. Homero Jiménez Rabiela | G42: =IFERROR(VLOOKUP(A42,Hoja1!$A$1:$H$578,8,FALSE)," ") -> 55-5318-9069
A43: 36 | B43: =VLOOKUP(A43,Hoja1!$A$1:$H$578,3,FALSE) -> 1602 | C43: =IFERROR(VLOOKUP(A43,Hoja1!$A$1:$H$578,4,FALSE)," ") -> UAM | D43: =IFERROR(VLOOKUP(A43,Hoja1!$A$1:$H$578,5,FALSE)," ") -> Mecánica | E43: =IFERROR(VLOOKUP(A43,Hoja1!$A$1:$H$578,6,FALSE)," ") -> Caracterización de las propiedades mecánicas de las aleaciones ferrosas y no ferrosas en condición de colada y tratadas térmicamente | F43: =IFERROR(VLOOKUP(A43,Hoja1!$A$1:$H$578,7,FALSE)," ") -> Dr. Miguel Angel Suárez Rosales | G43: =IFERROR(VLOOKUP(A43,Hoja1!$A$1:$H$578,8,FALSE)," ") -> 55- 5318-9000
A44: 37 | B44: =VLOOKUP(A44,Hoja1!$A$1:$H$578,3,FALSE) -> 1606 | C44: =IFERROR(VLOOKUP(A44,Hoja1!$A$1:$H$578,4,FALSE)," ") -> UAM | D44: =IFERROR(VLOOKUP(A44,Hoja1!$A$1:$H$578,5,FALSE)," ") -> Mecánica | E44: =IFERROR(VLOOKUP(A44,Hoja1!$A$1:$H$578,6,FALSE)," ") -> Materiales polifuncionales en forma de películas, nanopartículas y monolitos cerámicos | F44: =IFERROR(VLOOKUP(A44,Hoja1!$A$1:$H$578,7,FALSE)," ") -> Mtro. Roberto Tito Hernández López Dr. Isaías Hernández Pérez | G44: =IFERROR(VLOOKUP(A44,Hoja1!$A$1:$H$578,8,FALSE)," ") -> 55-5318-9000 exts. 2135, 2117
A45: 38 | B45: =VLOOKUP(A45,Hoja1!$A$1:$H$578,3,FALSE) -> 1615 | C45: =IFERROR(VLOOKUP(A45,Hoja1!$A$1:$H$578,4,FALSE)," ") -> UAM | D45: =IFERROR(VLOOKUP(A45,Hoja1!$A$1:$H$578,5,FALSE)," ") -> Mecánica | E45: =IFERROR(VLOOKUP(A45,Hoja1!$A$1:$H$578,6,FALSE)," ") -> Construcción mecánica de un dispositivo para manufactura aditiva con filamento plástico como material para la fabricación de piezas tridimensionales. | F45: =IFERROR(VLOOKUP(A45,Hoja1!$A$1:$H$578,7,FALSE)," ") -> M. en I. Pedro García Segura Dr. Adrián Gustavo Bravo Acosta | G45: =IFERROR(VLOOKUP(A45,Hoja1!$A$1:$H$578,8,FALSE)," ") -> 55-5318-9072, 55-5318-9066
A46: 39 | B46: =VLOOKUP(A46,Hoja1!$A$1:$H$578,3,FALSE) -> 1616 | C46: =IFERROR(VLOOKUP(A46,Hoja1!$A$1:$H$578,4,FALSE)," ") -> UAM | D46: =IFERROR(VLOOKUP(A46,Hoja1!$A$1:$H$578,5,FALSE)," ") -> Mecánica | E46: =IFERROR(VLOOKUP(A46,Hoja1!$A$1:$H$578,6,FALSE)," ") -> Estudio experimental de resistencia en ejes mecánicos de acero. | F46: =IFERROR(VLOOKUP(A46,Hoja1!$A$1:$H$578,7,FALSE)," ") -> Dr. José Luis Ramírez Cruz | G46: =IFERROR(VLOOKUP(A46,Hoja1!$A$1:$H$578,8,FALSE)," ") -> 55-53189068
A47: 40 | B47: =VLOOKUP(A47,Hoja1!$A$1:$H$578,3,FALSE) -> 1621 | C47: =IFERROR(VLOOKUP(A47,Hoja1!$A$1:$H$578,4,FALSE)," ") -> UAM | D47: =IFERROR(VLOOKUP(A47,Hoja1!$A$1:$H$578,5,FALSE)," ") -> Mecánica | E47: =IFERROR(VLOOKUP(A47,Hoja1!$A$1:$H$578,6,FALSE)," ") -> Fortalecimiento de los circuitos justos de producción-consumo de los productos de la colmena de las abejas nativas. | F47: =IFERROR(VLOOKUP(A47,Hoja1!$A$1:$H$578,7,FALSE)," ") -> Dr. Jesús Manuel Ramos García, Dr. Leonel Flores Vega | G47: =IFERROR(VLOOKUP(A47,Hoja1!$A$1:$H$578,8,FALSE)," ") -> 55-5318-9191, ext. 168
A48: 41 | B48: =VLOOKUP(A48,Hoja1!$A$1:$H$578,3,FALSE) -> 1626 | C48: =IFERROR(VLOOKUP(A48,Hoja1!$A$1:$H$578,4,FALSE)," ") -> UAM | D48: =IFERROR(VLOOKUP(A48,Hoja1!$A$1:$H$578,5,FALSE)," ") -> Mecánica | E48: =IFERROR(VLOOKUP(A48,Hoja1!$A$1:$H$578,6,FALSE)," ") -> Desarrollo de una Ortesis con Sistema de sujeción ajustable para fracturas de antebrazo | F48: =IFERROR(VLOOKUP(A48,Hoja1!$A$1:$H$578,7,FALSE)," ") -> Dra. Lisaura Walkiria Rodríguez Alvarado Dr. Usiel Sandino Silva Rivera Ing. Jesús Loyo Quijada | G48: =IFERROR(VLOOKUP(A48,Hoja1!$A$1:$H$578,8,FALSE)," ") -> 55-5318-9000 ext. 2422, 2423
A49: 42 | B49: =VLOOKUP(A49,Hoja1!$A$1:$H$578,3,FALSE) -> 1637 | C49: =IFERROR(VLOOKUP(A49,Hoja1!$A$1:$H$578,4,FALSE)," ") -> UAM | D49: =IFERROR(VLOOKUP(A49,Hoja1!$A$1:$H$578,5,FALSE)," ") -> Mecánica | E49: =IFERROR(VLOOKUP(A49,Hoja1!$A$1:$H$578,6,FALSE)," ") -> Revisión del equipo de protección de sala 4 del laboratorio de eléctrica (Mini Red y Módulos Experimentales) | F49: =IFERROR(VLOOKUP(A49,Hoja1!$A$1:$H$578,7,FALSE)," ") -> Dr. Ahmed Zekkour Zekkour Dr. Carlos Alberto Rivera Salamanca Dr. David Antonio Aragón Verduzco | G49: =IFERROR(VLOOKUP(A49,Hoja1!$A$1:$H$578,8,FALSE)," ") -> 55-5318-9000 ext. 9049
A50: 43 | B50: =VLOOKUP(A50,Hoja1!$A$1:$H$578,3,FALSE) -> 1651 | C50: =IFERROR(VLOOKUP(A50,Hoja1!$A$1:$H$578,4,FALSE)," ") -> UAM | D50: =IFERROR(VLOOKUP(A50,Hoja1!$A$1:$H$578,5,FALSE)," ") -> Mecánica | E50: =IFERROR(VLOOKUP(A50,Hoja1!$A$1:$H$578,6,FALSE)," ") -> Diseño, construcción y ensamble de sistemas robóticos | F50: =IFERROR(VLOOKUP(A50,Hoja1!$A$1:$H$578,7,FALSE)," ") -> M. en C. Roberto Alfonso Alcántara Ramírez M. en C. Jorge Miguel Jaimes Ponce | G50: =IFERROR(VLOOKUP(A50,Hoja1!$A$1:$H$578,8,FALSE)," ") -> 55-5318-9000 ext. 9030
A51: 44 | B51: =VLOOKUP(A51,Hoja1!$A$1:$H$578,3,FALSE) ->  | C51: =IFERROR(VLOOKUP(A51,Hoja1!$A$1:$H$578,4,FALSE)," ") ->  | D51: =IFERROR(VLOOKUP(A51,Hoja1!$A$1:$H$578,5,FALSE)," ") ->  | E51: =IFERROR(VLOOKUP(A51,Hoja1!$A$1:$H$578,6,FALSE)," ") ->  | F51: =IFERROR(VLOOKUP(A51,Hoja1!$A$1:$H$578,7,FALSE)," ") ->  | G51: =IFERROR(VLOOKUP(A51,Hoja1!$A$1:$H$578,8,FALSE)," ") -> 
A52: 45 | B52: =VLOOKUP(A52,Hoja1!$A$1:$H$578,3,FALSE) ->  | C52: =IFERROR(VLOOKUP(A52,Hoja1!$A$1:$H$578,4,FALSE)," ") ->  | D52: =IFERROR(VLOOKUP(A52,Hoja1!$A$1:$H$578,5,FALSE)," ") ->  | E52: =IFERROR(VLOOKUP(A52,Hoja1!$A$1:$H$578,6,FALSE)," ") ->  | F52: =IFERROR(VLOOKUP(A52,Hoja1!$A$1:$H$578,7,FALSE)," ") ->  | G52: =IFERROR(VLOOKUP(A52,Hoja1!$A$1:$H$578,8,FALSE)," ") -> 
A53: 46 | B53: =VLOOKUP(A53,Hoja1!$A$1:$H$578,3,FALSE) ->  | C53: =IFERROR(VLOOKUP(A53,Hoja1!$A$1:$H$578,4,FALSE)," ") ->  | D53: =IFERROR(VLOOKUP(A53,Hoja1!$A$1:$H$578,5,FALSE)," ") ->  | E53: =IFERROR(VLOOKUP(A53,Hoja1!$A$1:$H$578,6,FALSE)," ") ->  | F53: =IFERROR(VLOOKUP(A53,Hoja1!$A$1:$H$578,7,FALSE)," ") ->  | G53: =IFERROR(VLOOKUP(A53,Hoja1!$A$1:$H$578,8,FALSE)," ") -> 
A54: 47 | B54: =VLOOKUP(A54,Hoja1!$A$1:$H$578,3,FALSE) ->  | C54: =IFERROR(VLOOKUP(A54,Hoja1!$A$1:$H$578,4,FALSE)," ") ->  | D54: =IFERROR(VLOOKUP(A54,Hoja1!$A$1:$H$578,5,FALSE)," ") ->  | E54: =IFERROR(VLOOKUP(A54,Hoja1!$A$1:$H$578,6,FALSE)," ") ->  | F54: =IFERROR(VLOOKUP(A54,Hoja1!$A$1:$H$578,7,FALSE)," ") ->  | G54: =IFERROR(VLOOKUP(A54,Hoja1!$A$1:$H$578,8,FALSE)," ") -> 
A55: 48 | B55: =VLOOKUP(A55,Hoja1!$A$1:$H$578,3,FALSE) ->  | C55: =IFERROR(VLOOKUP(A55,Hoja1!$A$1:$H$578,4,FALSE)," ") ->  | D55: =IFERROR(VLOOKUP(A55,Hoja1!$A$1:$H$578,5,FALSE)," ") ->  | E55: =IFERROR(VLOOKUP(A55,Hoja1!$A$1:$H$578,6,FALSE)," ") ->  | F55: =IFERROR(VLOOKUP(A55,Hoja1!$A$1:$H$578,7,FALSE)," ") ->  | G55: =IFERROR(VLOOKUP(A55,Hoja1!$A$1:$H$578,8,FALSE)," ") -> 
A56: 49 | B56: =VLOOKUP(A56,Hoja1!$A$1:$H$578,3,FALSE) ->  | C56: =IFERROR(VLOOKUP(A56,Hoja1!$A$1:$H$578,4,FALSE)," ") ->  | D56: =IFERROR(VLOOKUP(A56,Hoja1!$A$1:$H$578,5,FALSE)," ") ->  | E56: =IFERROR(VLOOKUP(A56,Hoja1!$A$1:$H$578,6,FALSE)," ") ->  | F56: =IFERROR(VLOOKUP(A56,Hoja1!$A$1:$H$578,7,FALSE)," ") ->  | G56: =IFERROR(VLOOKUP(A56,Hoja1!$A$1:$H$578,8,FALSE)," ") -> 
A57: 50 | B57: =VLOOKUP(A57,Hoja1!$A$1:$H$578,3,FALSE) ->  | C57: =IFERROR(VLOOKUP(A57,Hoja1!$A$1:$H$578,4,FALSE)," ") ->  | D57: =IFERROR(VLOOKUP(A57,Hoja1!$A$1:$H$578,5,FALSE)," ") ->  | E57: =IFERROR(VLOOKUP(A57,Hoja1!$A$1:$H$578,6,FALSE)," ") ->  | F57: =IFERROR(VLOOKUP(A57,Hoja1!$A$1:$H$578,7,FALSE)," ") ->  | G57: =IFERROR(VLOOKUP(A57,Hoja1!$A$1:$H$578,8,FALSE)," ") -> 
A58: 51 | B58: =VLOOKUP(A58,Hoja1!$A$1:$H$578,3,FALSE) ->  | C58: =IFERROR(VLOOKUP(A58,Hoja1!$A$1:$H$578,4,FALSE)," ") ->  | D58: =IFERROR(VLOOKUP(A58,Hoja1!$A$1:$H$578,5,FALSE)," ") ->  | E58: =IFERROR(VLOOKUP(A58,Hoja1!$A$1:$H$578,6,FALSE)," ") ->  | F58: =IFERROR(VLOOKUP(A58,Hoja1!$A$1:$H$578,7,FALSE)," ") ->  | G58: =IFERROR(VLOOKUP(A58,Hoja1!$A$1:$H$578,8,FALSE)," ") -> 
A59: 52 | B59: =VLOOKUP(A59,Hoja1!$A$1:$H$578,3,FALSE) ->  | C59: =IFERROR(VLOOKUP(A59,Hoja1!$A$1:$H$578,4,FALSE)," ") ->  | D59: =IFERROR(VLOOKUP(A59,Hoja1!$A$1:$H$578,5,FALSE)," ") ->  | E59: =IFERROR(VLOOKUP(A59,Hoja1!$A$1:$H$578,6,FALSE)," ") ->  | F59: =IFERROR(VLOOKUP(A59,Hoja1!$A$1:$H$578,7,FALSE)," ") ->  | G59: =IFERROR(VLOOKUP(A59,Hoja1!$A$1:$H$578,8,FALSE)," ") -> 
A60: 53 | B60: =VLOOKUP(A60,Hoja1!$A$1:$H$578,3,FALSE) ->  | C60: =IFERROR(VLOOKUP(A60,Hoja1!$A$1:$H$578,4,FALSE)," ") ->  | D60: =IFERROR(VLOOKUP(A60,Hoja1!$A$1:$H$578,5,FALSE)," ") ->  | E60: =IFERROR(VLOOKUP(A60,Hoja1!$A$1:$H$578,6,FALSE)," ") ->  | F60: =IFERROR(VLOOKUP(A60,Hoja1!$A$1:$H$578,7,FALSE)," ") ->  | G60: =IFERROR(VLOOKUP(A60,Hoja1!$A$1:$H$578,8,FALSE)," ") -> 
A61: 54 | B61: =VLOOKUP(A61,Hoja1!$A$1:$H$578,3,FALSE) ->  | C61: =IFERROR(VLOOKUP(A61,Hoja1!$A$1:$H$578,4,FALSE)," ") ->  | D61: =IFERROR(VLOOKUP(A61,Hoja1!$A$1:$H$578,5,FALSE)," ") ->  | E61: =IFERROR(VLOOKUP(A61,Hoja1!$A$1:$H$578,6,FALSE)," ") ->  | F61: =IFERROR(VLOOKUP(A61,Hoja1!$A$1:$H$578,7,FALSE)," ") ->  | G61: =IFERROR(VLOOKUP(A61,Hoja1!$A$1:$H$578,8,FALSE)," ") -> 
A62: 55 | B62: =VLOOKUP(A62,Hoja1!$A$1:$H$578,3,FALSE) ->  | C62: =IFERROR(VLOOKUP(A62,Hoja1!$A$1:$H$578,4,FALSE)," ") ->  | D62: =IFERROR(VLOOKUP(A62,Hoja1!$A$1:$H$578,5,FALSE)," ") ->  | E62: =IFERROR(VLOOKUP(A62,Hoja1!$A$1:$H$578,6,FALSE)," ") ->  | F62: =IFERROR(VLOOKUP(A62,Hoja1!$A$1:$H$578,7,FALSE)," ") ->  | G62: =IFERROR(VLOOKUP(A62,Hoja1!$A$1:$H$578,8,FALSE)," ") -> 
A63: 56 | B63: =VLOOKUP(A63,Hoja1!$A$1:$H$578,3,FALSE) ->  | C63: =IFERROR(VLOOKUP(A63,Hoja1!$A$1:$H$578,4,FALSE)," ") ->  | D63: =IFERROR(VLOOKUP(A63,Hoja1!$A$1:$H$578,5,FALSE)," ") ->  | E63: =IFERROR(VLOOKUP(A63,Hoja1!$A$1:$H$578,6,FALSE)," ") ->  | F63: =IFERROR(VLOOKUP(A63,Hoja1!$A$1:$H$578,7,FALSE)," ") ->  | G63: =IFERROR(VLOOKUP(A63,Hoja1!$A$1:$H$578,8,FALSE)," ") -> 
A64: 57 | B64: =VLOOKUP(A64,Hoja1!$A$1:$H$578,3,FALSE) ->  | C64: =IFERROR(VLOOKUP(A64,Hoja1!$A$1:$H$578,4,FALSE)," ") ->  | D64: =IFERROR(VLOOKUP(A64,Hoja1!$A$1:$H$578,5,FALSE)," ") ->  | E64: =IFERROR(VLOOKUP(A64,Hoja1!$A$1:$H$578,6,FALSE)," ") ->  | F64: =IFERROR(VLOOKUP(A64,Hoja1!$A$1:$H$578,7,FALSE)," ") ->  | G64: =IFERROR(VLOOKUP(A64,Hoja1!$A$1:$H$578,8,FALSE)," ") -> 
A65: 58 | B65: =VLOOKUP(A65,Hoja1!$A$1:$H$578,3,FALSE) ->  | C65: =IFERROR(VLOOKUP(A65,Hoja1!$A$1:$H$578,4,FALSE)," ") ->  | D65: =IFERROR(VLOOKUP(A65,Hoja1!$A$1:$H$578,5,FALSE)," ") ->  | E65: =IFERROR(VLOOKUP(A65,Hoja1!$A$1:$H$578,6,FALSE)," ") ->  | F65: =IFERROR(VLOOKUP(A65,Hoja1!$A$1:$H$578,7,FALSE)," ") ->  | G65: =IFERROR(VLOOKUP(A65,Hoja1!$A$1:$H$578,8,FALSE)," ") -> 
A66: 59 | B66: =VLOOKUP(A66,Hoja1!$A$1:$H$578,3,FALSE) ->  | C66: =IFERROR(VLOOKUP(A66,Hoja1!$A$1:$H$578,4,FALSE)," ") ->  | D66: =IFERROR(VLOOKUP(A66,Hoja1!$A$1:$H$578,5,FALSE)," ") ->  | E66: =IFERROR(VLOOKUP(A66,Hoja1!$A$1:$H$578,6,FALSE)," ") ->  | F66: =IFERROR(VLOOKUP(A66,Hoja1!$A$1:$H$578,7,FALSE)," ") ->  | G66: =IFERROR(VLOOKUP(A66,Hoja1!$A$1:$H$578,8,FALSE)," ") -> 
A67: 60 | B67: =VLOOKUP(A67,Hoja1!$A$1:$H$578,3,FALSE) ->  | C67: =IFERROR(VLOOKUP(A67,Hoja1!$A$1:$H$578,4,FALSE)," ") ->  | D67: =IFERROR(VLOOKUP(A67,Hoja1!$A$1:$H$578,5,FALSE)," ") ->  | E67: =IFERROR(VLOOKUP(A67,Hoja1!$A$1:$H$578,6,FALSE)," ") ->  | F67: =IFERROR(VLOOKUP(A67,Hoja1!$A$1:$H$578,7,FALSE)," ") ->  | G67: =IFERROR(VLOOKUP(A67,Hoja1!$A$1:$H$578,8,FALSE)," ") -> 
A68: 61 | B68: =VLOOKUP(A68,Hoja1!$A$1:$H$578,3,FALSE) ->  | C68: =IFERROR(VLOOKUP(A68,Hoja1!$A$1:$H$578,4,FALSE)," ") ->  | D68: =IFERROR(VLOOKUP(A68,Hoja1!$A$1:$H$578,5,FALSE)," ") ->  | E68: =IFERROR(VLOOKUP(A68,Hoja1!$A$1:$H$578,6,FALSE)," ") ->  | F68: =IFERROR(VLOOKUP(A68,Hoja1!$A$1:$H$578,7,FALSE)," ") ->  | G68: =IFERROR(VLOOKUP(A68,Hoja1!$A$1:$H$578,8,FALSE)," ") -> 
A69: 62 | B69: =VLOOKUP(A69,Hoja1!$A$1:$H$578,3,FALSE) ->  | C69: =IFERROR(VLOOKUP(A69,Hoja1!$A$1:$H$578,4,FALSE)," ") ->  | D69: =IFERROR(VLOOKUP(A69,Hoja1!$A$1:$H$578,5,FALSE)," ") ->  | E69: =IFERROR(VLOOKUP(A69,Hoja1!$A$1:$H$578,6,FALSE)," ") ->  | F69: =IFERROR(VLOOKUP(A69,Hoja1!$A$1:$H$578,7,FALSE)," ") ->  | G69: =IFERROR(VLOOKUP(A69,Hoja1!$A$1:$H$578,8,FALSE)," ") -> 
A70: 63 | B70: =VLOOKUP(A70,Hoja1!$A$1:$H$578,3,FALSE) ->  | C70: =IFERROR(VLOOKUP(A70,Hoja1!$A$1:$H$578,4,FALSE)," ") ->  | D70: =IFERROR(VLOOKUP(A70,Hoja1!$A$1:$H$578,5,FALSE)," ") ->  | E70: =IFERROR(VLOOKUP(A70,Hoja1!$A$1:$H$578,6,FALSE)," ") ->  | F70: =IFERROR(VLOOKUP(A70,Hoja1!$A$1:$H$578,7,FALSE)," ") ->  | G70: =IFERROR(VLOOKUP(A70,Hoja1!$A$1:$H$578,8,FALSE)," ") -> 
A71: 64 | B71: =VLOOKUP(A71,Hoja1!$A$1:$H$578,3,FALSE) ->  | C71: =IFERROR(VLOOKUP(A71,Hoja1!$A$1:$H$578,4,FALSE)," ") ->  | D71: =IFERROR(VLOOKUP(A71,Hoja1!$A$1:$H$578,5,FALSE)," ") ->  | E71: =IFERROR(VLOOKUP(A71,Hoja1!$A$1:$H$578,6,FALSE)," ") ->  | F71: =IFERROR(VLOOKUP(A71,Hoja1!$A$1:$H$578,7,FALSE)," ") ->  | G71: =IFERROR(VLOOKUP(A71,Hoja1!$A$1:$H$578,8,FALSE)," ") -> 
A72: 65 | B72: =VLOOKUP(A72,Hoja1!$A$1:$H$578,3,FALSE) ->  | C72: =IFERROR(VLOOKUP(A72,Hoja1!$A$1:$H$578,4,FALSE)," ") ->  | D72: =IFERROR(VLOOKUP(A72,Hoja1!$A$1:$H$578,5,FALSE)," ") ->  | E72: =IFERROR(VLOOKUP(A72,Hoja1!$A$1:$H$578,6,FALSE)," ") ->  | F72: =IFERROR(VLOOKUP(A72,Hoja1!$A$1:$H$578,7,FALSE)," ") ->  | G72: =IFERROR(VLOOKUP(A72,Hoja1!$A$1:$H$578,8,FALSE)," ") -> 
A73: 66 | B73: =VLOOKUP(A73,Hoja1!$A$1:$H$578,3,FALSE) ->  | C73: =IFERROR(VLOOKUP(A73,Hoja1!$A$1:$H$578,4,FALSE)," ") ->  | D73: =IFERROR(VLOOKUP(A73,Hoja1!$A$1:$H$578,5,FALSE)," ") ->  | E73: =IFERROR(VLOOKUP(A73,Hoja1!$A$1:$H$578,6,FALSE)," ") ->  | F73: =IFERROR(VLOOKUP(A73,Hoja1!$A$1:$H$578,7,FALSE)," ") ->  | G73: =IFERROR(VLOOKUP(A73,Hoja1!$A$1:$H$578,8,FALSE)," ") -> 
A74: 67 | B74: =VLOOKUP(A74,Hoja1!$A$1:$H$578,3,FALSE) ->  | C74: =IFERROR(VLOOKUP(A74,Hoja1!$A$1:$H$578,4,FALSE)," ") ->  | D74: =IFERROR(VLOOKUP(A74,Hoja1!$A$1:$H$578,5,FALSE)," ") ->  | E74: =IFERROR(VLOOKUP(A74,Hoja1!$A$1:$H$578,6,FALSE)," ") ->  | F74: =IFERROR(VLOOKUP(A74,Hoja1!$A$1:$H$578,7,FALSE)," ") ->  | G74: =IFERROR(VLOOKUP(A74,Hoja1!$A$1:$H$578,8,FALSE)," ") -> 
A75: 68 | B75: =VLOOKUP(A75,Hoja1!$A$1:$H$578,3,FALSE) ->  | C75: =IFERROR(VLOOKUP(A75,Hoja1!$A$1:$H$578,4,FALSE)," ") ->  | D75: =IFERROR(VLOOKUP(A75,Hoja1!$A$1:$H$578,5,FALSE)," ") ->  | E75: =IFERROR(VLOOKUP(A75,Hoja1!$A$1:$H$578,6,FALSE)," ") ->  | F75: =IFERROR(VLOOKUP(A75,Hoja1!$A$1:$H$578,7,FALSE)," ") ->  | G75: =IFERROR(VLOOKUP(A75,Hoja1!$A$1:$H$578,8,FALSE)," ") -> 
A76: 69 | B76: =VLOOKUP(A76,Hoja1!$A$1:$H$578,3,FALSE) ->  | C76: =IFERROR(VLOOKUP(A76,Hoja1!$A$1:$H$578,4,FALSE)," ") ->  | D76: =IFERROR(VLOOKUP(A76,Hoja1!$A$1:$H$578,5,FALSE)," ") ->  | E76: =IFERROR(VLOOKUP(A76,Hoja1!$A$1:$H$578,6,FALSE)," ") ->  | F76: =IFERROR(VLOOKUP(A76,Hoja1!$A$1:$H$578,7,FALSE)," ") ->  | G76: =IFERROR(VLOOKUP(A76,Hoja1!$A$1:$H$578,8,FALSE)," ") -> 
A77: 70 | B77: =VLOOKUP(A77,Hoja1!$A$1:$H$578,3,FALSE) ->  | C77: =IFERROR(VLOOKUP(A77,Hoja1!$A$1:$H$578,4,FALSE)," ") ->  | D77: =IFERROR(VLOOKUP(A77,Hoja1!$A$1:$H$578,5,FALSE)," ") ->  | E77: =IFERROR(VLOOKUP(A77,Hoja1!$A$1:$H$578,6,FALSE)," ") ->  | F77: =IFERROR(VLOOKUP(A77,Hoja1!$A$1:$H$578,7,FALSE)," ") ->  | G77: =IFERROR(VLOOKUP(A77,Hoja1!$A$1:$H$578,8,FALSE)," ") -> 
A78: 71 | B78: =VLOOKUP(A78,Hoja1!$A$1:$H$578,3,FALSE) ->  | C78: =IFERROR(VLOOKUP(A78,Hoja1!$A$1:$H$578,4,FALSE)," ") ->  | D78: =IFERROR(VLOOKUP(A78,Hoja1!$A$1:$H$578,5,FALSE)," ") ->  | E78: =IFERROR(VLOOKUP(A78,Hoja1!$A$1:$H$578,6,FALSE)," ") ->  | F78: =IFERROR(VLOOKUP(A78,Hoja1!$A$1:$H$578,7,FALSE)," ") ->  | G78: =IFERROR(VLOOKUP(A78,Hoja1!$A$1:$H$578,8,FALSE)," ") -> 
A79: 72 | B79: =VLOOKUP(A79,Hoja1!$A$1:$H$578,3,FALSE) ->  | C79: =IFERROR(VLOOKUP(A79,Hoja1!$A$1:$H$578,4,FALSE)," ") ->  | D79: =IFERROR(VLOOKUP(A79,Hoja1!$A$1:$H$578,5,FALSE)," ") ->  | E79: =IFERROR(VLOOKUP(A79,Hoja1!$A$1:$H$578,6,FALSE)," ") ->  | F79: =IFERROR(VLOOKUP(A79,Hoja1!$A$1:$H$578,7,FALSE)," ") ->  | G79: =IFERROR(VLOOKUP(A79,Hoja1!$A$1:$H$578,8,FALSE)," ") -> 
A80: 73 | B80: =VLOOKUP(A80,Hoja1!$A$1:$H$578,3,FALSE) ->  | C80: =IFERROR(VLOOKUP(A80,Hoja1!$A$1:$H$578,4,FALSE)," ") ->  | D80: =IFERROR(VLOOKUP(A80,Hoja1!$A$1:$H$578,5,FALSE)," ") ->  | E80: =IFERROR(VLOOKUP(A80,Hoja1!$A$1:$H$578,6,FALSE)," ") ->  | F80: =IFERROR(VLOOKUP(A80,Hoja1!$A$1:$H$578,7,FALSE)," ") ->  | G80: =IFERROR(VLOOKUP(A80,Hoja1!$A$1:$H$578,8,FALSE)," ") -> 
A81: 74 | B81: =VLOOKUP(A81,Hoja1!$A$1:$H$578,3,FALSE) ->  | C81: =IFERROR(VLOOKUP(A81,Hoja1!$A$1:$H$578,4,FALSE)," ") ->  | D81: =IFERROR(VLOOKUP(A81,Hoja1!$A$1:$H$578,5,FALSE)," ") ->  | E81: =IFERROR(VLOOKUP(A81,Hoja1!$A$1:$H$578,6,FALSE)," ") ->  | F81: =IFERROR(VLOOKUP(A81,Hoja1!$A$1:$H$578,7,FALSE)," ") ->  | G81: =IFERROR(VLOOKUP(A81,Hoja1!$A$1:$H$578,8,FALSE)," ") -> 
A82: 75 | B82: =VLOOKUP(A82,Hoja1!$A$1:$H$578,3,FALSE) ->  | C82: =IFERROR(VLOOKUP(A82,Hoja1!$A$1:$H$578,4,FALSE)," ") ->  | D82: =IFERROR(VLOOKUP(A82,Hoja1!$A$1:$H$578,5,FALSE)," ") ->  | E82: =IFERROR(VLOOKUP(A82,Hoja1!$A$1:$H$578,6,FALSE)," ") ->  | F82: =IFERROR(VLOOKUP(A82,Hoja1!$A$1:$H$578,7,FALSE)," ") ->  | G82: =IFERROR(VLOOKUP(A82,Hoja1!$A$1:$H$578,8,FALSE)," ") -> 
A83: 76 | B83: =VLOOKUP(A83,Hoja1!$A$1:$H$578,3,FALSE) ->  | C83: =IFERROR(VLOOKUP(A83,Hoja1!$A$1:$H$578,4,FALSE)," ") ->  | D83: =IFERROR(VLOOKUP(A83,Hoja1!$A$1:$H$578,5,FALSE)," ") ->  | E83: =IFERROR(VLOOKUP(A83,Hoja1!$A$1:$H$578,6,FALSE)," ") ->  | F83: =IFERROR(VLOOKUP(A83,Hoja1!$A$1:$H$578,7,FALSE)," ") ->  | G83: =IFERROR(VLOOKUP(A83,Hoja1!$A$1:$H$578,8,FALSE)," ") -> 
A84: 77 | B84: =VLOOKUP(A84,Hoja1!$A$1:$H$578,3,FALSE) ->  | C84: =IFERROR(VLOOKUP(A84,Hoja1!$A$1:$H$578,4,FALSE)," ") ->  | D84: =IFERROR(VLOOKUP(A84,Hoja1!$A$1:$H$578,5,FALSE)," ") ->  | E84: =IFERROR(VLOOKUP(A84,Hoja1!$A$1:$H$578,6,FALSE)," ") ->  | F84: =IFERROR(VLOOKUP(A84,Hoja1!$A$1:$H$578,7,FALSE)," ") ->  | G84: =IFERROR(VLOOKUP(A84,Hoja1!$A$1:$H$578,8,FALSE)," ") -> 
A85: 78 | B85: =VLOOKUP(A85,Hoja1!$A$1:$H$578,3,FALSE) ->  | C85: =IFERROR(VLOOKUP(A85,Hoja1!$A$1:$H$578,4,FALSE)," ") ->  | D85: =IFERROR(VLOOKUP(A85,Hoja1!$A$1:$H$578,5,FALSE)," ") ->  | E85: =IFERROR(VLOOKUP(A85,Hoja1!$A$1:$H$578,6,FALSE)," ") ->  | F85: =IFERROR(VLOOKUP(A85,Hoja1!$A$1:$H$578,7,FALSE)," ") ->  | G85: =IFERROR(VLOOKUP(A85,Hoja1!$A$1:$H$578,8,FALSE)," ") -> 
A86: 79 | B86: =VLOOKUP(A86,Hoja1!$A$1:$H$578,3,FALSE) ->  | C86: =IFERROR(VLOOKUP(A86,Hoja1!$A$1:$H$578,4,FALSE)," ") ->  | D86: =IFERROR(VLOOKUP(A86,Hoja1!$A$1:$H$578,5,FALSE)," ") ->  | E86: =IFERROR(VLOOKUP(A86,Hoja1!$A$1:$H$578,6,FALSE)," ") ->  | F86: =IFERROR(VLOOKUP(A86,Hoja1!$A$1:$H$578,7,FALSE)," ") ->  | G86: =IFERROR(VLOOKUP(A86,Hoja1!$A$1:$H$578,8,FALSE)," ") -> 
A87: 80 | B87: =VLOOKUP(A87,Hoja1!$A$1:$H$578,3,FALSE) ->  | C87: =IFERROR(VLOOKUP(A87,Hoja1!$A$1:$H$578,4,FALSE)," ") ->  | D87: =IFERROR(VLOOKUP(A87,Hoja1!$A$1:$H$578,5,FALSE)," ") ->  | E87: =IFERROR(VLOOKUP(A87,Hoja1!$A$1:$H$578,6,FALSE)," ") ->  | F87: =IFERROR(VLOOKUP(A87,Hoja1!$A$1:$H$578,7,FALSE)," ") ->  | G87: =IFERROR(VLOOKUP(A87,Hoja1!$A$1:$H$578,8,FALSE)," ") -> 
A88: 81 | B88: =VLOOKUP(A88,Hoja1!$A$1:$H$578,3,FALSE) ->  | C88: =IFERROR(VLOOKUP(A88,Hoja1!$A$1:$H$578,4,FALSE)," ") ->  | D88: =IFERROR(VLOOKUP(A88,Hoja1!$A$1:$H$578,5,FALSE)," ") ->  | E88: =IFERROR(VLOOKUP(A88,Hoja1!$A$1:$H$578,6,FALSE)," ") ->  | F88: =IFERROR(VLOOKUP(A88,Hoja1!$A$1:$H$578,7,FALSE)," ") ->  | G88: =IFERROR(VLOOKUP(A88,Hoja1!$A$1:$H$578,8,FALSE)," ") -> 
A89: 82 | B89: =VLOOKUP(A89,Hoja1!$A$1:$H$578,3,FALSE) ->  | C89: =IFERROR(VLOOKUP(A89,Hoja1!$A$1:$H$578,4,FALSE)," ") ->  | D89: =IFERROR(VLOOKUP(A89,Hoja1!$A$1:$H$578,5,FALSE)," ") ->  | E89: =IFERROR(VLOOKUP(A89,Hoja1!$A$1:$H$578,6,FALSE)," ") ->  | F89: =IFERROR(VLOOKUP(A89,Hoja1!$A$1:$H$578,7,FALSE)," ") ->  | G89: =IFERROR(VLOOKUP(A89,Hoja1!$A$1:$H$578,8,FALSE)," ") -> 
A90: 83 | B90: =VLOOKUP(A90,Hoja1!$A$1:$H$578,3,FALSE) ->  | C90: =IFERROR(VLOOKUP(A90,Hoja1!$A$1:$H$578,4,FALSE)," ") ->  | D90: =IFERROR(VLOOKUP(A90,Hoja1!$A$1:$H$578,5,FALSE)," ") ->  | E90: =IFERROR(VLOOKUP(A90,Hoja1!$A$1:$H$578,6,FALSE)," ") ->  | F90: =IFERROR(VLOOKUP(A90,Hoja1!$A$1:$H$578,7,FALSE)," ") ->  | G90: =IFERROR(VLOOKUP(A90,Hoja1!$A$1:$H$578,8,FALSE)," ") -> 
A91: 84 | B91: =VLOOKUP(A91,Hoja1!$A$1:$H$578,3,FALSE) ->  | C91: =IFERROR(VLOOKUP(A91,Hoja1!$A$1:$H$578,4,FALSE)," ") ->  | D91: =IFERROR(VLOOKUP(A91,Hoja1!$A$1:$H$578,5,FALSE)," ") ->  | E91: =IFERROR(VLOOKUP(A91,Hoja1!$A$1:$H$578,6,FALSE)," ") ->  | F91: =IFERROR(VLOOKUP(A91,Hoja1!$A$1:$H$578,7,FALSE)," ") ->  | G91: =IFERROR(VLOOKUP(A91,Hoja1!$A$1:$H$578,8,FALSE)," ") -> 
A92: 85 | B92: =VLOOKUP(A92,Hoja1!$A$1:$H$578,3,FALSE) ->  | C92: =IFERROR(VLOOKUP(A92,Hoja1!$A$1:$H$578,4,FALSE)," ") ->  | D92: =IFERROR(VLOOKUP(A92,Hoja1!$A$1:$H$578,5,FALSE)," ") ->  | E92: =IFERROR(VLOOKUP(A92,Hoja1!$A$1:$H$578,6,FALSE)," ") ->  | F92: =IFERROR(VLOOKUP(A92,Hoja1!$A$1:$H$578,7,FALSE)," ") ->  | G92: =IFERROR(VLOOKUP(A92,Hoja1!$A$1:$H$578,8,FALSE)," ") -> 
A93: 86 | B93: =VLOOKUP(A93,Hoja1!$A$1:$H$578,3,FALSE) ->  | C93: =IFERROR(VLOOKUP(A93,Hoja1!$A$1:$H$578,4,FALSE)," ") ->  | D93: =IFERROR(VLOOKUP(A93,Hoja1!$A$1:$H$578,5,FALSE)," ") ->  | E93: =IFERROR(VLOOKUP(A93,Hoja1!$A$1:$H$578,6,FALSE)," ") ->  | F93: =IFERROR(VLOOKUP(A93,Hoja1!$A$1:$H$578,7,FALSE)," ") ->  | G93: =IFERROR(VLOOKUP(A93,Hoja1!$A$1:$H$578,8,FALSE)," ") -> 
A94: 87 | B94: =VLOOKUP(A94,Hoja1!$A$1:$H$578,3,FALSE) ->  | C94: =IFERROR(VLOOKUP(A94,Hoja1!$A$1:$H$578,4,FALSE)," ") ->  | D94: =IFERROR(VLOOKUP(A94,Hoja1!$A$1:$H$578,5,FALSE)," ") ->  | E94: =IFERROR(VLOOKUP(A94,Hoja1!$A$1:$H$578,6,FALSE)," ") ->  | F94: =IFERROR(VLOOKUP(A94,Hoja1!$A$1:$H$578,7,FALSE)," ") ->  | G94: =IFERROR(VLOOKUP(A94,Hoja1!$A$1:$H$578,8,FALSE)," ") -> 
A95: 88 | B95: =VLOOKUP(A95,Hoja1!$A$1:$H$578,3,FALSE) ->  | C95: =IFERROR(VLOOKUP(A95,Hoja1!$A$1:$H$578,4,FALSE)," ") ->  | D95: =IFERROR(VLOOKUP(A95,Hoja1!$A$1:$H$578,5,FALSE)," ") ->  | E95: =IFERROR(VLOOKUP(A95,Hoja1!$A$1:$H$578,6,FALSE)," ") ->  | F95: =IFERROR(VLOOKUP(A95,Hoja1!$A$1:$H$578,7,FALSE)," ") ->  | G95: =IFERROR(VLOOKUP(A95,Hoja1!$A$1:$H$578,8,FALSE)," ") -> 
A96: 89 | B96: =VLOOKUP(A96,Hoja1!$A$1:$H$578,3,FALSE) ->  | C96: =IFERROR(VLOOKUP(A96,Hoja1!$A$1:$H$578,4,FALSE)," ") ->  | D96: =IFERROR(VLOOKUP(A96,Hoja1!$A$1:$H$578,5,FALSE)," ") ->  | E96: =IFERROR(VLOOKUP(A96,Hoja1!$A$1:$H$578,6,FALSE)," ") ->  | F96: =IFERROR(VLOOKUP(A96,Hoja1!$A$1:$H$578,7,FALSE)," ") ->  | G96: =IFERROR(VLOOKUP(A96,Hoja1!$A$1:$H$578,8,FALSE)," ") -> 
A97: 90 | B97: =VLOOKUP(A97,Hoja1!$A$1:$H$578,3,FALSE) ->  | C97: =IFERROR(VLOOKUP(A97,Hoja1!$A$1:$H$578,4,FALSE)," ") ->  | D97: =IFERROR(VLOOKUP(A97,Hoja1!$A$1:$H$578,5,FALSE)," ") ->  | E97: =IFERROR(VLOOKUP(A97,Hoja1!$A$1:$H$578,6,FALSE)," ") ->  | F97: =IFERROR(VLOOKUP(A97,Hoja1!$A$1:$H$578,7,FALSE)," ") ->  | G97: =IFERROR(VLOOKUP(A97,Hoja1!$A$1:$H$578,8,FALSE)," ") -> 
A98: 91 | B98: =VLOOKUP(A98,Hoja1!$A$1:$H$578,3,FALSE) ->  | C98: =IFERROR(VLOOKUP(A98,Hoja1!$A$1:$H$578,4,FALSE)," ") ->  | D98: =IFERROR(VLOOKUP(A98,Hoja1!$A$1:$H$578,5,FALSE)," ") ->  | E98: =IFERROR(VLOOKUP(A98,Hoja1!$A$1:$H$578,6,FALSE)," ") ->  | F98: =IFERROR(VLOOKUP(A98,Hoja1!$A$1:$H$578,7,FALSE)," ") ->  | G98: =IFERROR(VLOOKUP(A98,Hoja1!$A$1:$H$578,8,FALSE)," ") -> 
A99: 92 | B99: =VLOOKUP(A99,Hoja1!$A$1:$H$578,3,FALSE) ->  | C99: =IFERROR(VLOOKUP(A99,Hoja1!$A$1:$H$578,4,FALSE)," ") ->  | D99: =IFERROR(VLOOKUP(A99,Hoja1!$A$1:$H$578,5,FALSE)," ") ->  | E99: =IFERROR(VLOOKUP(A99,Hoja1!$A$1:$H$578,6,FALSE)," ") ->  | F99: =IFERROR(VLOOKUP(A99,Hoja1!$A$1:$H$578,7,FALSE)," ") ->  | G99: =IFERROR(VLOOKUP(A99,Hoja1!$A$1:$H$578,8,FALSE)," ") -> 
A100: 93 | B100: =VLOOKUP(A100,Hoja1!$A$1:$H$578,3,FALSE) ->  | C100: =IFERROR(VLOOKUP(A100,Hoja1!$A$1:$H$578,4,FALSE)," ") ->  | D100: =IFERROR(VLOOKUP(A100,Hoja1!$A$1:$H$578,5,FALSE)," ") ->  | E100: =IFERROR(VLOOKUP(A100,Hoja1!$A$1:$H$578,6,FALSE)," ") ->  | F100: =IFERROR(VLOOKUP(A100,Hoja1!$A$1:$H$578,7,FALSE)," ") ->  | G100: =IFERROR(VLOOKUP(A100,Hoja1!$A$1:$H$578,8,FALSE)," ") -> 
A101: 94 | B101: =VLOOKUP(A101,Hoja1!$A$1:$H$578,3,FALSE) ->  | C101: =IFERROR(VLOOKUP(A101,Hoja1!$A$1:$H$578,4,FALSE)," ") ->  | D101: =IFERROR(VLOOKUP(A101,Hoja1!$A$1:$H$578,5,FALSE)," ") ->  | E101: =IFERROR(VLOOKUP(A101,Hoja1!$A$1:$H$578,6,FALSE)," ") ->  | F101: =IFERROR(VLOOKUP(A101,Hoja1!$A$1:$H$578,7,FALSE)," ") ->  | G101: =IFERROR(VLOOKUP(A101,Hoja1!$A$1:$H$578,8,FALSE)," ") -> 
A102: 95 | B102: =VLOOKUP(A102,Hoja1!$A$1:$H$578,3,FALSE) ->  | C102: =IFERROR(VLOOKUP(A102,Hoja1!$A$1:$H$578,4,FALSE)," ") ->  | D102: =IFERROR(VLOOKUP(A102,Hoja1!$A$1:$H$578,5,FALSE)," ") ->  | E102: =IFERROR(VLOOKUP(A102,Hoja1!$A$1:$H$578,6,FALSE)," ") ->  | F102: =IFERROR(VLOOKUP(A102,Hoja1!$A$1:$H$578,7,FALSE)," ") ->  | G102: =IFERROR(VLOOKUP(A102,Hoja1!$A$1:$H$578,8,FALSE)," ") -> 
A103: 96 | B103: =VLOOKUP(A103,Hoja1!$A$1:$H$578,3,FALSE) ->  | C103: =IFERROR(VLOOKUP(A103,Hoja1!$A$1:$H$578,4,FALSE)," ") ->  | D103: =IFERROR(VLOOKUP(A103,Hoja1!$A$1:$H$578,5,FALSE)," ") ->  | E103: =IFERROR(VLOOKUP(A103,Hoja1!$A$1:$H$578,6,FALSE)," ") ->  | F103: =IFERROR(VLOOKUP(A103,Hoja1!$A$1:$H$578,7,FALSE)," ") ->  | G103: =IFERROR(VLOOKUP(A103,Hoja1!$A$1:$H$578,8,FALSE)," ") -> 
A104: 97 | B104: =VLOOKUP(A104,Hoja1!$A$1:$H$578,3,FALSE) ->  | C104: =IFERROR(VLOOKUP(A104,Hoja1!$A$1:$H$578,4,FALSE)," ") ->  | D104: =IFERROR(VLOOKUP(A104,Hoja1!$A$1:$H$578,5,FALSE)," ") ->  | E104: =IFERROR(VLOOKUP(A104,Hoja1!$A$1:$H$578,6,FALSE)," ") ->  | F104: =IFERROR(VLOOKUP(A104,Hoja1!$A$1:$H$578,7,FALSE)," ") ->  | G104: =IFERROR(VLOOKUP(A104,Hoja1!$A$1:$H$578,8,FALSE)," ") -> 
A105: 98 | B105: =VLOOKUP(A105,Hoja1!$A$1:$H$578,3,FALSE) ->  | C105: =IFERROR(VLOOKUP(A105,Hoja1!$A$1:$H$578,4,FALSE)," ") ->  | D105: =IFERROR(VLOOKUP(A105,Hoja1!$A$1:$H$578,5,FALSE)," ") ->  | E105: =IFERROR(VLOOKUP(A105,Hoja1!$A$1:$H$578,6,FALSE)," ") ->  | F105: =IFERROR(VLOOKUP(A105,Hoja1!$A$1:$H$578,7,FALSE)," ") ->  | G105: =IFERROR(VLOOKUP(A105,Hoja1!$A$1:$H$578,8,FALSE)," ") -> 
A106: 99 | B106: =VLOOKUP(A106,Hoja1!$A$1:$H$578,3,FALSE) ->  | C106: =IFERROR(VLOOKUP(A106,Hoja1!$A$1:$H$578,4,FALSE)," ") ->  | D106: =IFERROR(VLOOKUP(A106,Hoja1!$A$1:$H$578,5,FALSE)," ") ->  | E106: =IFERROR(VLOOKUP(A106,Hoja1!$A$1:$H$578,6,FALSE)," ") ->  | F106: =IFERROR(VLOOKUP(A106,Hoja1!$A$1:$H$578,7,FALSE)," ") ->  | G106: =IFERROR(VLOOKUP(A106,Hoja1!$A$1:$H$578,8,FALSE)," ") -> 
A107: 100 | B107: =VLOOKUP(A107,Hoja1!$A$1:$H$578,3,FALSE) ->  | C107: =IFERROR(VLOOKUP(A107,Hoja1!$A$1:$H$578,4,FALSE)," ") ->  | D107: =IFERROR(VLOOKUP(A107,Hoja1!$A$1:$H$578,5,FALSE)," ") ->  | E107: =IFERROR(VLOOKUP(A107,Hoja1!$A$1:$H$578,6,FALSE)," ") ->  | F107: =IFERROR(VLOOKUP(A107,Hoja1!$A$1:$H$578,7,FALSE)," ") ->  | G107: =IFERROR(VLOOKUP(A107,Hoja1!$A$1:$H$578,8,FALSE)," ") -> 
A108: 101 | B108: =VLOOKUP(A108,Hoja1!$A$1:$H$578,3,FALSE) ->  | C108: =IFERROR(VLOOKUP(A108,Hoja1!$A$1:$H$578,4,FALSE)," ") ->  | D108: =IFERROR(VLOOKUP(A108,Hoja1!$A$1:$H$578,5,FALSE)," ") ->  | E108: =IFERROR(VLOOKUP(A108,Hoja1!$A$1:$H$578,6,FALSE)," ") ->  | F108: =IFERROR(VLOOKUP(A108,Hoja1!$A$1:$H$578,7,FALSE)," ") ->  | G108: =IFERROR(VLOOKUP(A108,Hoja1!$A$1:$H$578,8,FALSE)," ") -> 
A109: 102 | B109: =VLOOKUP(A109,Hoja1!$A$1:$H$578,3,FALSE) ->  | C109: =IFERROR(VLOOKUP(A109,Hoja1!$A$1:$H$578,4,FALSE)," ") ->  | D109: =IFERROR(VLOOKUP(A109,Hoja1!$A$1:$H$578,5,FALSE)," ") ->  | E109: =IFERROR(VLOOKUP(A109,Hoja1!$A$1:$H$578,6,FALSE)," ") ->  | F109: =IFERROR(VLOOKUP(A109,Hoja1!$A$1:$H$578,7,FALSE)," ") ->  | G109: =IFERROR(VLOOKUP(A109,Hoja1!$A$1:$H$578,8,FALSE)," ") -> 
A110: 103 | B110: =VLOOKUP(A110,Hoja1!$A$1:$H$578,3,FALSE) ->  | C110: =IFERROR(VLOOKUP(A110,Hoja1!$A$1:$H$578,4,FALSE)," ") ->  | D110: =IFERROR(VLOOKUP(A110,Hoja1!$A$1:$H$578,5,FALSE)," ") ->  | E110: =IFERROR(VLOOKUP(A110,Hoja1!$A$1:$H$578,6,FALSE)," ") ->  | F110: =IFERROR(VLOOKUP(A110,Hoja1!$A$1:$H$578,7,FALSE)," ") ->  | G110: =IFERROR(VLOOKUP(A110,Hoja1!$A$1:$H$578,8,FALSE)," ") -> 
A111: 104 | B111: =VLOOKUP(A111,Hoja1!$A$1:$H$578,3,FALSE) ->  | C111: =IFERROR(VLOOKUP(A111,Hoja1!$A$1:$H$578,4,FALSE)," ") ->  | D111: =IFERROR(VLOOKUP(A111,Hoja1!$A$1:$H$578,5,FALSE)," ") ->  | E111: =IFERROR(VLOOKUP(A111,Hoja1!$A$1:$H$578,6,FALSE)," ") ->  | F111: =IFERROR(VLOOKUP(A111,Hoja1!$A$1:$H$578,7,FALSE)," ") ->  | G111: =IFERROR(VLOOKUP(A111,Hoja1!$A$1:$H$578,8,FALSE)," ") -> 
A112: 105 | B112: =VLOOKUP(A112,Hoja1!$A$1:$H$578,3,FALSE) ->  | C112: =IFERROR(VLOOKUP(A112,Hoja1!$A$1:$H$578,4,FALSE)," ") ->  | D112: =IFERROR(VLOOKUP(A112,Hoja1!$A$1:$H$578,5,FALSE)," ") ->  | E112: =IFERROR(VLOOKUP(A112,Hoja1!$A$1:$H$578,6,FALSE)," ") ->  | F112: =IFERROR(VLOOKUP(A112,Hoja1!$A$1:$H$578,7,FALSE)," ") ->  | G112: =IFERROR(VLOOKUP(A112,Hoja1!$A$1:$H$578,8,FALSE)," ") -> 
A113: 106 | B113: =VLOOKUP(A113,Hoja1!$A$1:$H$578,3,FALSE) ->  | C113: =IFERROR(VLOOKUP(A113,Hoja1!$A$1:$H$578,4,FALSE)," ") ->  | D113: =IFERROR(VLOOKUP(A113,Hoja1!$A$1:$H$578,5,FALSE)," ") ->  | E113: =IFERROR(VLOOKUP(A113,Hoja1!$A$1:$H$578,6,FALSE)," ") ->  | F113: =IFERROR(VLOOKUP(A113,Hoja1!$A$1:$H$578,7,FALSE)," ") ->  | G113: =IFERROR(VLOOKUP(A113,Hoja1!$A$1:$H$578,8,FALSE)," ") -> 
A114: 107 | B114: =VLOOKUP(A114,Hoja1!$A$1:$H$578,3,FALSE) ->  | C114: =IFERROR(VLOOKUP(A114,Hoja1!$A$1:$H$578,4,FALSE)," ") ->  | D114: =IFERROR(VLOOKUP(A114,Hoja1!$A$1:$H$578,5,FALSE)," ") ->  | E114: =IFERROR(VLOOKUP(A114,Hoja1!$A$1:$H$578,6,FALSE)," ") ->  | F114: =IFERROR(VLOOKUP(A114,Hoja1!$A$1:$H$578,7,FALSE)," ") ->  | G114: =IFERROR(VLOOKUP(A114,Hoja1!$A$1:$H$578,8,FALSE)," ") -> 
A115: 108 | B115: =VLOOKUP(A115,Hoja1!$A$1:$H$578,3,FALSE) ->  | C115: =IFERROR(VLOOKUP(A115,Hoja1!$A$1:$H$578,4,FALSE)," ") ->  | D115: =IFERROR(VLOOKUP(A115,Hoja1!$A$1:$H$578,5,FALSE)," ") ->  | E115: =IFERROR(VLOOKUP(A115,Hoja1!$A$1:$H$578,6,FALSE)," ") ->  | F115: =IFERROR(VLOOKUP(A115,Hoja1!$A$1:$H$578,7,FALSE)," ") ->  | G115: =IFERROR(VLOOKUP(A115,Hoja1!$A$1:$H$578,8,FALSE)," ") -> 
A116: 109 | B116: =VLOOKUP(A116,Hoja1!$A$1:$H$578,3,FALSE) ->  | C116: =IFERROR(VLOOKUP(A116,Hoja1!$A$1:$H$578,4,FALSE)," ") ->  | D116: =IFERROR(VLOOKUP(A116,Hoja1!$A$1:$H$578,5,FALSE)," ") ->  | E116: =IFERROR(VLOOKUP(A116,Hoja1!$A$1:$H$578,6,FALSE)," ") ->  | F116: =IFERROR(VLOOKUP(A116,Hoja1!$A$1:$H$578,7,FALSE)," ") ->  | G116: =IFERROR(VLOOKUP(A116,Hoja1!$A$1:$H$578,8,FALSE)," ") -> 
A117: 110 | B117: =VLOOKUP(A117,Hoja1!$A$1:$H$578,3,FALSE) ->  | C117: =IFERROR(VLOOKUP(A117,Hoja1!$A$1:$H$578,4,FALSE)," ") ->  | D117: =IFERROR(VLOOKUP(A117,Hoja1!$A$1:$H$578,5,FALSE)," ") ->  | E117: =IFERROR(VLOOKUP(A117,Hoja1!$A$1:$H$578,6,FALSE)," ") ->  | F117: =IFERROR(VLOOKUP(A117,Hoja1!$A$1:$H$578,7,FALSE)," ") ->  | G117: =IFERROR(VLOOKUP(A117,Hoja1!$A$1:$H$578,8,FALSE)," ") -> 
A118: 111 | B118: =VLOOKUP(A118,Hoja1!$A$1:$H$578,3,FALSE) ->  | C118: =IFERROR(VLOOKUP(A118,Hoja1!$A$1:$H$578,4,FALSE)," ") ->  | D118: =IFERROR(VLOOKUP(A118,Hoja1!$A$1:$H$578,5,FALSE)," ") ->  | E118: =IFERROR(VLOOKUP(A118,Hoja1!$A$1:$H$578,6,FALSE)," ") ->  | F118: =IFERROR(VLOOKUP(A118,Hoja1!$A$1:$H$578,7,FALSE)," ") ->  | G118: =IFERROR(VLOOKUP(A118,Hoja1!$A$1:$H$578,8,FALSE)," ") -> 
A119: 112 | B119: =VLOOKUP(A119,Hoja1!$A$1:$H$578,3,FALSE) ->  | C119: =IFERROR(VLOOKUP(A119,Hoja1!$A$1:$H$578,4,FALSE)," ") ->  | D119: =IFERROR(VLOOKUP(A119,Hoja1!$A$1:$H$578,5,FALSE)," ") ->  | E119: =IFERROR(VLOOKUP(A119,Hoja1!$A$1:$H$578,6,FALSE)," ") ->  | F119: =IFERROR(VLOOKUP(A119,Hoja1!$A$1:$H$578,7,FALSE)," ") ->  | G119: =IFERROR(VLOOKUP(A119,Hoja1!$A$1:$H$578,8,FALSE)," ") -> 
A120: 113 | B120: =VLOOKUP(A120,Hoja1!$A$1:$H$578,3,FALSE) ->  | C120: =IFERROR(VLOOKUP(A120,Hoja1!$A$1:$H$578,4,FALSE)," ") ->  | D120: =IFERROR(VLOOKUP(A120,Hoja1!$A$1:$H$578,5,FALSE)," ") ->  | E120: =IFERROR(VLOOKUP(A120,Hoja1!$A$1:$H$578,6,FALSE)," ") ->  | F120: =IFERROR(VLOOKUP(A120,Hoja1!$A$1:$H$578,7,FALSE)," ") ->  | G120: =IFERROR(VLOOKUP(A120,Hoja1!$A$1:$H$578,8,FALSE)," ") -> 
A121: 114 | B121: =VLOOKUP(A121,Hoja1!$A$1:$H$578,3,FALSE) ->  | C121: =IFERROR(VLOOKUP(A121,Hoja1!$A$1:$H$578,4,FALSE)," ") ->  | D121: =IFERROR(VLOOKUP(A121,Hoja1!$A$1:$H$578,5,FALSE)," ") ->  | E121: =IFERROR(VLOOKUP(A121,Hoja1!$A$1:$H$578,6,FALSE)," ") ->  | F121: =IFERROR(VLOOKUP(A121,Hoja1!$A$1:$H$578,7,FALSE)," ") ->  | G121: =IFERROR(VLOOKUP(A121,Hoja1!$A$1:$H$578,8,FALSE)," ") -> 
A122: 115 | B122: =VLOOKUP(A122,Hoja1!$A$1:$H$578,3,FALSE) ->  | C122: =IFERROR(VLOOKUP(A122,Hoja1!$A$1:$H$578,4,FALSE)," ") ->  | D122: =IFERROR(VLOOKUP(A122,Hoja1!$A$1:$H$578,5,FALSE)," ") ->  | E122: =IFERROR(VLOOKUP(A122,Hoja1!$A$1:$H$578,6,FALSE)," ") ->  | F122: =IFERROR(VLOOKUP(A122,Hoja1!$A$1:$H$578,7,FALSE)," ") ->  | G122: =IFERROR(VLOOKUP(A122,Hoja1!$A$1:$H$578,8,FALSE)," ") -> 
A123: 116 | B123: =VLOOKUP(A123,Hoja1!$A$1:$H$578,3,FALSE) ->  | C123: =IFERROR(VLOOKUP(A123,Hoja1!$A$1:$H$578,4,FALSE)," ") ->  | D123: =IFERROR(VLOOKUP(A123,Hoja1!$A$1:$H$578,5,FALSE)," ") ->  | E123: =IFERROR(VLOOKUP(A123,Hoja1!$A$1:$H$578,6,FALSE)," ") ->  | F123: =IFERROR(VLOOKUP(A123,Hoja1!$A$1:$H$578,7,FALSE)," ") ->  | G123: =IFERROR(VLOOKUP(A123,Hoja1!$A$1:$H$578,8,FALSE)," ") -> 
A124: 117 | B124: =VLOOKUP(A124,Hoja1!$A$1:$H$578,3,FALSE) ->  | C124: =IFERROR(VLOOKUP(A124,Hoja1!$A$1:$H$578,4,FALSE)," ") ->  | D124: =IFERROR(VLOOKUP(A124,Hoja1!$A$1:$H$578,5,FALSE)," ") ->  | E124: =IFERROR(VLOOKUP(A124,Hoja1!$A$1:$H$578,6,FALSE)," ") ->  | F124: =IFERROR(VLOOKUP(A124,Hoja1!$A$1:$H$578,7,FALSE)," ") ->  | G124: =IFERROR(VLOOKUP(A124,Hoja1!$A$1:$H$578,8,FALSE)," ") -> 
A125: 118 | B125: =VLOOKUP(A125,Hoja1!$A$1:$H$578,3,FALSE) ->  | C125: =IFERROR(VLOOKUP(A125,Hoja1!$A$1:$H$578,4,FALSE)," ") ->  | D125: =IFERROR(VLOOKUP(A125,Hoja1!$A$1:$H$578,5,FALSE)," ") ->  | E125: =IFERROR(VLOOKUP(A125,Hoja1!$A$1:$H$578,6,FALSE)," ") ->  | F125: =IFERROR(VLOOKUP(A125,Hoja1!$A$1:$H$578,7,FALSE)," ") ->  | G125: =IFERROR(VLOOKUP(A125,Hoja1!$A$1:$H$578,8,FALSE)," ") -> 
A126: 119 | B126: =VLOOKUP(A126,Hoja1!$A$1:$H$578,3,FALSE) ->  | C126: =IFERROR(VLOOKUP(A126,Hoja1!$A$1:$H$578,4,FALSE)," ") ->  | D126: =IFERROR(VLOOKUP(A126,Hoja1!$A$1:$H$578,5,FALSE)," ") ->  | E126: =IFERROR(VLOOKUP(A126,Hoja1!$A$1:$H$578,6,FALSE)," ") ->  | F126: =IFERROR(VLOOKUP(A126,Hoja1!$A$1:$H$578,7,FALSE)," ") ->  | G126: =IFERROR(VLOOKUP(A126,Hoja1!$A$1:$H$578,8,FALSE)," ") -> 
A127: 120 | B127: =VLOOKUP(A127,Hoja1!$A$1:$H$578,3,FALSE) ->  | C127: =IFERROR(VLOOKUP(A127,Hoja1!$A$1:$H$578,4,FALSE)," ") ->  | D127: =IFERROR(VLOOKUP(A127,Hoja1!$A$1:$H$578,5,FALSE)," ") ->  | E127: =IFERROR(VLOOKUP(A127,Hoja1!$A$1:$H$578,6,FALSE)," ") ->  | F127: =IFERROR(VLOOKUP(A127,Hoja1!$A$1:$H$578,7,FALSE)," ") ->  | G127: =IFERROR(VLOOKUP(A127,Hoja1!$A$1:$H$578,8,FALSE)," ") -> 
A128: 121 | B128: =VLOOKUP(A128,Hoja1!$A$1:$H$578,3,FALSE) ->  | C128: =IFERROR(VLOOKUP(A128,Hoja1!$A$1:$H$578,4,FALSE)," ") ->  | D128: =IFERROR(VLOOKUP(A128,Hoja1!$A$1:$H$578,5,FALSE)," ") ->  | E128: =IFERROR(VLOOKUP(A128,Hoja1!$A$1:$H$578,6,FALSE)," ") ->  | F128: =IFERROR(VLOOKUP(A128,Hoja1!$A$1:$H$578,7,FALSE)," ") ->  | G128: =IFERROR(VLOOKUP(A128,Hoja1!$A$1:$H$578,8,FALSE)," ") -> 
A129: 122 | B129: =VLOOKUP(A129,Hoja1!$A$1:$H$578,3,FALSE) ->  | C129: =IFERROR(VLOOKUP(A129,Hoja1!$A$1:$H$578,4,FALSE)," ") ->  | D129: =IFERROR(VLOOKUP(A129,Hoja1!$A$1:$H$578,5,FALSE)," ") ->  | E129: =IFERROR(VLOOKUP(A129,Hoja1!$A$1:$H$578,6,FALSE)," ") ->  | F129: =IFERROR(VLOOKUP(A129,Hoja1!$A$1:$H$578,7,FALSE)," ") ->  | G129: =IFERROR(VLOOKUP(A129,Hoja1!$A$1:$H$578,8,FALSE)," ") -> 
A607: 600
A608: 601
A609: 602
A610: 603
A611: 604
A612: 605
A613: 606
A614: 607
A615: 608
A616: 609
A617: 610
A618: 611
A619: 612
A620: 613
A621: 614
A622: 615
A623: 616
A624: 617
A625: 618
A626: 619
A627: 620
A628: 621
A629: 622
A630: 623
A631: 624
A632: 625
A633: 626
A634: 627
A635: 628
A636: 629
A637: 630
A638: 631
A639: 632
A640: 633
A641: 634
A642: 635
A643: 636
A644: 637
A645: 638
A646: 639
A647: 640
A648: 641
A649: 642
A650: 643
A651: 644
A652: 645
A653: 646
A654: 647
A655: 648
A656: 649
A657: 650
A658: 651
A659: 652
A660: 653
A661: 654
A662: 655
A663: 656
A664: 657
A665: 658
A666: 659
A667: 660
A668: 661
A669: 662
A670: 663
A671: 664
A672: 665
A673: 666
A674: 667
A675: 668
A676: 669
A677: 670
A678: 671
A679: 672
A680: 673
... 224 more rows

Sheet NOTA
